Workbook

Sheet GuildTechnology
B1: Id | C1: TechId | D1: Icon | E1: Level | F1: Values | G1: Profession | H1: Consume
B2: int | C2: int | D2: int | E2: int | F2: mut,int#int,1 | G2: int | H2: mut,int#int,2
B3: 2 | C3: 2 | D3: 3 | E3: 2 | F3: 2 | G3: 2 | H3: 2
B4: 索引 | C4: 科技点 | D4: 图标 | E4: 等级 | F4: 属性 | G4: 隶属定位 1、；2、； 3、；4，； | H4: 进阶下一级的消耗
A5: 默认值
A6: 正确性校对
A7: 校对值
B8: 1 | C8: 1 | D8: 270003 | E8: 0 | F8: 61#0 | G8: 1 | H8: 14#6000|65#10
B9: 2 | C9: 1 | D9: 270003 | E9: 1 | F9: 61#50 | G9: 1 | H9: 14#18000|65#30
B10: 3 | C10: 1 | D10: 270003 | E10: 2 | F10: 61#100 | G10: 1 | H10: 14#30000|65#50
B11: 4 | C11: 1 | D11: 270003 | E11: 3 | F11: 61#150 | G11: 1 | H11: 14#42000|65#70
B12: 5 | C12: 1 | D12: 270003 | E12: 4 | F12: 61#200 | G12: 1 | H12: 14#54000|65#90
B13: 6 | C13: 1 | D13: 270003 | E13: 5 | F13: 61#250 | G13: 1 | H13: 14#66000|65#110
B14: 7 | C14: 1 | D14: 270003 | E14: 6 | F14: 61#300 | G14: 1 | H14: 14#78000|65#130
B15: 8 | C15: 1 | D15: 270003 | E15: 7 | F15: 61#350 | G15: 1 | H15: 14#90000|65#150
B16: 9 | C16: 1 | D16: 270003 | E16: 8 | F16: 61#400 | G16: 1 | H16: 14#102000|65#170
B17: 10 | C17: 1 | D17: 270003 | E17: 9 | F17: 61#450 | G17: 1 | H17: 14#114000|65#190
B18: 11 | C18: 1 | D18: 270003 | E18: 10 | F18: 61#500 | G18: 1 | H18: 14#126000|65#210
B19: 12 | C19: 1 | D19: 270003 | E19: 11 | F19: 61#550 | G19: 1 | H19: 14#150000|65#250
B20: 13 | C20: 1 | D20: 270003 | E20: 12 | F20: 61#600 | G20: 1 | H20: 14#174000|65#290
B21: 14 | C21: 1 | D21: 270003 | E21: 13 | F21: 61#650 | G21: 1 | H21: 14#198000|65#330
B22: 15 | C22: 1 | D22: 270003 | E22: 14 | F22: 61#700 | G22: 1 | H22: 14#222000|65#370
B23: 16 | C23: 1 | D23: 270003 | E23: 15 | F23: 61#750 | G23: 1 | H23: 14#246000|65#410
B24: 17 | C24: 1 | D24: 270003 | E24: 16 | F24: 61#800 | G24: 1 | H24: 14#270000|65#450
B25: 18 | C25: 1 | D25: 270003 | E25: 17 | F25: 61#850 | G25: 1 | H25: 14#294000|65#490
B26: 19 | C26: 1 | D26: 270003 | E26: 18 | F26: 61#900 | G26: 1 | H26: 14#318000|65#530
B27: 20 | C27: 1 | D27: 270003 | E27: 19 | F27: 61#950 | G27: 1 | H27: 14#342000|65#570
B28: 21 | C28: 1 | D28: 270003 | E28: 20 | F28: 61#1000 | G28: 1 | H28: 14#366000|65#610
B29: 22 | C29: 1 | D29: 270003 | E29: 21 | F29: 61#1050 | G29: 1 | H29: 14#414000|65#690
B30: 23 | C30: 1 | D30: 270003 | E30: 22 | F30: 61#1100 | G30: 1 | H30: 14#462000|65#770
B31: 24 | C31: 1 | D31: 270003 | E31: 23 | F31: 61#1150 | G31: 1 | H31: 14#510000|65#850
B32: 25 | C32: 1 | D32: 270003 | E32: 24 | F32: 61#1200 | G32: 1 | H32: 14#558000|65#930
B33: 26 | C33: 1 | D33: 270003 | E33: 25 | F33: 61#1250 | G33: 1 | H33: 14#606000|65#1010
B34: 27 | C34: 1 | D34: 270003 | E34: 26 | F34: 61#1300 | G34: 1 | H34: 14#654000|65#1090
B35: 28 | C35: 1 | D35: 270003 | E35: 27 | F35: 61#1350 | G35: 1 | H35: 14#702000|65#1170
B36: 29 | C36: 1 | D36: 270003 | E36: 28 | F36: 61#1400 | G36: 1 | H36: 14#750000|65#1250
B37: 30 | C37: 1 | D37: 270003 | E37: 29 | F37: 61#1450 | G37: 1 | H37: 14#798000|65#1330
B38: 31 | C38: 1 | D38: 270003 | E38: 30 | F38: 61#1500 | G38: 1 | H38: 14#846000|65#1410
B39: 32 | C39: 1 | D39: 270003 | E39: 31 | F39: 61#1550 | G39: 1 | H39: 14#942000|65#1570
B40: 33 | C40: 1 | D40: 270003 | E40: 32 | F40: 61#1600 | G40: 1 | H40: 14#1038000|65#1730
B41: 34 | C41: 1 | D41: 270003 | E41: 33 | F41: 61#1650 | G41: 1 | H41: 14#1134000|65#1890
B42: 35 | C42: 1 | D42: 270003 | E42: 34 | F42: 61#1700 | G42: 1 | H42: 14#1230000|65#2050
B43: 36 | C43: 1 | D43: 270003 | E43: 35 | F43: 61#1750 | G43: 1 | H43: 14#1326000|65#2210
B44: 37 | C44: 1 | D44: 270003 | E44: 36 | F44: 61#1800 | G44: 1 | H44: 14#1422000|65#2370
B45: 38 | C45: 1 | D45: 270003 | E45: 37 | F45: 61#1850 | G45: 1 | H45: 14#1518000|65#2530
B46: 39 | C46: 1 | D46: 270003 | E46: 38 | F46: 61#1900 | G46: 1 | H46: 14#1614000|65#2690
B47: 40 | C47: 1 | D47: 270003 | E47: 39 | F47: 61#1950 | G47: 1 | H47: 14#1710000|65#2850
B48: 41 | C48: 1 | D48: 270003 | E48: 40 | F48: 61#2000 | G48: 1 | H48: 14#1806000|65#3010
B49: 42 | C49: 1 | D49: 270003 | E49: 41 | F49: 61#2050 | G49: 1 | H49: 14#1998000|65#3330
B50: 43 | C50: 1 | D50: 270003 | E50: 42 | F50: 61#2100 | G50: 1 | H50: 14#2190000|65#3650
B51: 44 | C51: 1 | D51: 270003 | E51: 43 | F51: 61#2150 | G51: 1 | H51: 14#2382000|65#3970
B52: 45 | C52: 1 | D52: 270003 | E52: 44 | F52: 61#2200 | G52: 1 | H52: 14#2574000|65#4290
B53: 46 | C53: 1 | D53: 270003 | E53: 45 | F53: 61#2250 | G53: 1 | H53: 14#2766000|65#4610
B54: 47 | C54: 1 | D54: 270003 | E54: 46 | F54: 61#2300 | G54: 1 | H54: 14#2958000|65#4930
B55: 48 | C55: 1 | D55: 270003 | E55: 47 | F55: 61#2350 | G55: 1 | H55: 14#3150000|65#5250
B56: 49 | C56: 1 | D56: 270003 | E56: 48 | F56: 61#2400 | G56: 1 | H56: 14#3342000|65#5570
B57: 50 | C57: 1 | D57: 270003 | E57: 49 | F57: 61#2450 | G57: 1 | H57: 14#3534000|65#5890
B58: 51 | C58: 1 | D58: 270003 | E58: 50 | F58: 61#2500 | G58: 1 | H58: 14#3726000|65#6210
B59: 52 | C59: 1 | D59: 270003 | E59: 51 | F59: 61#2550 | G59: 1 | H59: 14#4110000|65#6850
B60: 53 | C60: 1 | D60: 270003 | E60: 52 | F60: 61#2600 | G60: 1 | H60: 14#4494000|65#7490
B61: 54 | C61: 1 | D61: 270003 | E61: 53 | F61: 61#2650 | G61: 1 | H61: 14#4878000|65#8130
B62: 55 | C62: 1 | D62: 270003 | E62: 54 | F62: 61#2700 | G62: 1 | H62: 14#5262000|65#8770
B63: 56 | C63: 1 | D63: 270003 | E63: 55 | F63: 61#2750 | G63: 1 | H63: 14#5646000|65#9410
B64: 57 | C64: 1 | D64: 270003 | E64: 56 | F64: 61#2800 | G64: 1 | H64: 14#6030000|65#10050
B65: 58 | C65: 1 | D65: 270003 | E65: 57 | F65: 61#2850 | G65: 1 | H65: 14#6414000|65#10690
B66: 59 | C66: 1 | D66: 270003 | E66: 58 | F66: 61#2900 | G66: 1 | H66: 14#6798000|65#11330
B67: 60 | C67: 1 | D67: 270003 | E67: 59 | F67: 61#2950 | G67: 1 | H67: 14#7182000|65#11970
B68: 61 | C68: 1 | D68: 270003 | E68: 60 | F68: 61#3000 | G68: 1 | H68: 14#7566000|65#12610
B69: 62 | C69: 1 | D69: 270003 | E69: 61 | F69: 61#3050 | G69: 1 | H69: 14#8334000|65#13890
B70: 63 | C70: 1 | D70: 270003 | E70: 62 | F70: 61#3100 | G70: 1 | H70: 14#9102000|65#15170
B71: 64 | C71: 1 | D71: 270003 | E71: 63 | F71: 61#3150 | G71: 1 | H71: 14#9870000|65#16450
B72: 65 | C72: 1 | D72: 270003 | E72: 64 | F72: 61#3200 | G72: 1 | H72: 14#10638000|65#17730
B73: 66 | C73: 1 | D73: 270003 | E73: 65 | F73: 61#3250 | G73: 1 | H73: 14#11406000|65#19010
B74: 67 | C74: 1 | D74: 270003 | E74: 66 | F74: 61#3300 | G74: 1 | H74: 14#12174000|65#20290
B75: 68 | C75: 1 | D75: 270003 | E75: 67 | F75: 61#3350 | G75: 1 | H75: 14#12942000|65#21570
B76: 69 | C76: 1 | D76: 270003 | E76: 68 | F76: 61#3400 | G76: 1 | H76: 14#13710000|65#22850
B77: 70 | C77: 1 | D77: 270003 | E77: 69 | F77: 61#3450 | G77: 1 | H77: 14#14478000|65#24130
B78: 71 | C78: 1 | D78: 270003 | E78: 70 | F78: 61#3500 | G78: 1 | H78: 14#15246000|65#25410
B79: 72 | C79: 1 | D79: 270003 | E79: 71 | F79: 61#3550 | G79: 1 | H79: 14#16782000|65#27970
B80: 73 | C80: 1 | D80: 270003 | E80: 72 | F80: 61#3600 | G80: 1 | H80: 14#18318000|65#30530
B81: 74 | C81: 1 | D81: 270003 | E81: 73 | F81: 61#3650 | G81: 1 | H81: 14#19854000|65#33090
B82: 75 | C82: 1 | D82: 270003 | E82: 74 | F82: 61#3700 | G82: 1 | H82: 14#21390000|65#35650
B83: 76 | C83: 1 | D83: 270003 | E83: 75 | F83: 61#3750 | G83: 1 | H83: 14#22926000|65#38210
B84: 77 | C84: 1 | D84: 270003 | E84: 76 | F84: 61#3800 | G84: 1 | H84: 14#24462000|65#40770
B85: 78 | C85: 1 | D85: 270003 | E85: 77 | F85: 61#3850 | G85: 1 | H85: 14#25998000|65#43330
B86: 79 | C86: 1 | D86: 270003 | E86: 78 | F86: 61#3900 | G86: 1 | H86: 14#27534000|65#45890
B87: 80 | C87: 1 | D87: 270003 | E87: 79 | F87: 61#3950 | G87: 1 | H87: 14#29070000|65#48450
B88: 81 | C88: 1 | D88: 270003 | E88: 80 | F88: 61#4000 | G88: 1 | H88: 14#30606000|65#51010
B89: 82 | C89: 1 | D89: 270003 | E89: 81 | F89: 61#4050 | G89: 1 | H89: 14#33678000|65#56130
B90: 83 | C90: 1 | D90: 270003 | E90: 82 | F90: 61#4100 | G90: 1 | H90: 14#36750000|65#61250
B91: 84 | C91: 1 | D91: 270003 | E91: 83 | F91: 61#4150 | G91: 1 | H91: 14#39822000|65#66370
B92: 85 | C92: 1 | D92: 270003 | E92: 84 | F92: 61#4200 | G92: 1 | H92: 14#42894000|65#71490
B93: 86 | C93: 1 | D93: 270003 | E93: 85 | F93: 61#4250 | G93: 1 | H93: 14#45966000|65#76610
B94: 87 | C94: 1 | D94: 270003 | E94: 86 | F94: 61#4300 | G94: 1 | H94: 14#49038000|65#81730
B95: 88 | C95: 1 | D95: 270003 | E95: 87 | F95: 61#4350 | G95: 1 | H95: 14#52110000|65#86850
B96: 89 | C96: 1 | D96: 270003 | E96: 88 | F96: 61#4400 | G96: 1 | H96: 14#55182000|65#91970
B97: 90 | C97: 1 | D97: 270003 | E97: 89 | F97: 61#4450 | G97: 1 | H97: 14#58254000|65#97090
B98: 91 | C98: 1 | D98: 270003 | E98: 90 | F98: 61#4500 | G98: 1 | H98: 14#61326000|65#102210
B99: 92 | C99: 1 | D99: 270003 | E99: 91 | F99: 61#4550 | G99: 1 | H99: 14#67470000|65#112450
B100: 93 | C100: 1 | D100: 270003 | E100: 92 | F100: 61#4600 | G100: 1 | H100: 14#73614000|65#122690
B101: 94 | C101: 1 | D101: 270003 | E101: 93 | F101: 61#4650 | G101: 1 | H101: 14#79758000|65#132930
B102: 95 | C102: 1 | D102: 270003 | E102: 94 | F102: 61#4700 | G102: 1 | H102: 14#85902000|65#143170
B103: 96 | C103: 1 | D103: 270003 | E103: 95 | F103: 61#4750 | G103: 1 | H103: 14#92046000|65#153410
B104: 97 | C104: 1 | D104: 270003 | E104: 96 | F104: 61#4800 | G104: 1 | H104: 14#98190000|65#163650
B105: 98 | C105: 1 | D105: 270003 | E105: 97 | F105: 61#4850 | G105: 1 | H105: 14#104334000|65#173890
B106: 99 | C106: 1 | D106: 270003 | E106: 98 | F106: 61#4900 | G106: 1 | H106: 14#110478000|65#184130
B107: 100 | C107: 1 | D107: 270003 | E107: 99 | F107: 61#4950 | G107: 1 | H107: 14#116622000|65#194370
B108: 101 | C108: 1 | D108: 270003 | E108: 100 | F108: 61#5000 | G108: 1
B109: 102 | C109: 2 | D109: 270004 | E109: 0 | F109: 62#0 | G109: 1 | H109: 14#7200|65#12
B110: 103 | C110: 2 | D110: 270004 | E110: 1 | F110: 62#50 | G110: 1 | H110: 14#21600|65#36
B111: 104 | C111: 2 | D111: 270004 | E111: 2 | F111: 62#100 | G111: 1 | H111: 14#36000|65#60
B112: 105 | C112: 2 | D112: 270004 | E112: 3 | F112: 62#150 | G112: 1 | H112: 14#50400|65#84
B113: 106 | C113: 2 | D113: 270004 | E113: 4 | F113: 62#200 | G113: 1 | H113: 14#64800|65#108
B114: 107 | C114: 2 | D114: 270004 | E114: 5 | F114: 62#250 | G114: 1 | H114: 14#79200|65#132
B115: 108 | C115: 2 | D115: 270004 | E115: 6 | F115: 62#300 | G115: 1 | H115: 14#93600|65#156
B116: 109 | C116: 2 | D116: 270004 | E116: 7 | F116: 62#350 | G116: 1 | H116: 14#108000|65#180
B117: 110 | C117: 2 | D117: 270004 | E117: 8 | F117: 62#400 | G117: 1 | H117: 14#122400|65#204
B118: 111 | C118: 2 | D118: 270004 | E118: 9 | F118: 62#450 | G118: 1 | H118: 14#136800|65#228
B119: 112 | C119: 2 | D119: 270004 | E119: 10 | F119: 62#500 | G119: 1 | H119: 14#151200|65#252
B120: 113 | C120: 2 | D120: 270004 | E120: 11 | F120: 62#550 | G120: 1 | H120: 14#180000|65#300
B121: 114 | C121: 2 | D121: 270004 | E121: 12 | F121: 62#600 | G121: 1 | H121: 14#208800|65#348
B122: 115 | C122: 2 | D122: 270004 | E122: 13 | F122: 62#650 | G122: 1 | H122: 14#237600|65#396
B123: 116 | C123: 2 | D123: 270004 | E123: 14 | F123: 62#700 | G123: 1 | H123: 14#266400|65#444
B124: 117 | C124: 2 | D124: 270004 | E124: 15 | F124: 62#750 | G124: 1 | H124: 14#295200|65#492
B125: 118 | C125: 2 | D125: 270004 | E125: 16 | F125: 62#800 | G125: 1 | H125: 14#324000|65#540
B126: 119 | C126: 2 | D126: 270004 | E126: 17 | F126: 62#850 | G126: 1 | H126: 14#352800|65#588
B127: 120 | C127: 2 | D127: 270004 | E127: 18 | F127: 62#900 | G127: 1 | H127: 14#381600|65#636
B128: 121 | C128: 2 | D128: 270004 | E128: 19 | F128: 62#950 | G128: 1 | H128: 14#410400|65#684
B129: 122 | C129: 2 | D129: 270004 | E129: 20 | F129: 62#1000 | G129: 1 | H129: 14#439200|65#732
B130: 123 | C130: 2 | D130: 270004 | E130: 21 | F130: 62#1050 | G130: 1 | H130: 14#496800|65#828
B131: 124 | C131: 2 | D131: 270004 | E131: 22 | F131: 62#1100 | G131: 1 | H131: 14#554400|65#924
B132: 125 | C132: 2 | D132: 270004 | E132: 23 | F132: 62#1150 | G132: 1 | H132: 14#612000|65#1020
B133: 126 | C133: 2 | D133: 270004 | E133: 24 | F133: 62#1200 | G133: 1 | H133: 14#669600|65#1116
B134: 127 | C134: 2 | D134: 270004 | E134: 25 | F134: 62#1250 | G134: 1 | H134: 14#727200|65#1212
B135: 128 | C135: 2 | D135: 270004 | E135: 26 | F135: 62#1300 | G135: 1 | H135: 14#784800|65#1308
B136: 129 | C136: 2 | D136: 270004 | E136: 27 | F136: 62#1350 | G136: 1 | H136: 14#842400|65#1404
B137: 130 | C137: 2 | D137: 270004 | E137: 28 | F137: 62#1400 | G137: 1 | H137: 14#900000|65#1500
B138: 131 | C138: 2 | D138: 270004 | E138: 29 | F138: 62#1450 | G138: 1 | H138: 14#957600|65#1596
B139: 132 | C139: 2 | D139: 270004 | E139: 30 | F139: 62#1500 | G139: 1 | H139: 14#1015200|65#1692
B140: 133 | C140: 2 | D140: 270004 | E140: 31 | F140: 62#1550 | G140: 1 | H140: 14#1130400|65#1884
B141: 134 | C141: 2 | D141: 270004 | E141: 32 | F141: 62#1600 | G141: 1 | H141: 14#1245600|65#2076
B142: 135 | C142: 2 | D142: 270004 | E142: 33 | F142: 62#1650 | G142: 1 | H142: 14#1360800|65#2268
B143: 136 | C143: 2 | D143: 270004 | E143: 34 | F143: 62#1700 | G143: 1 | H143: 14#1476000|65#2460
B144: 137 | C144: 2 | D144: 270004 | E144: 35 | F144: 62#1750 | G144: 1 | H144: 14#1591200|65#2652
B145: 138 | C145: 2 | D145: 270004 | E145: 36 | F145: 62#1800 | G145: 1 | H145: 14#1706400|65#2844
B146: 139 | C146: 2 | D146: 270004 | E146: 37 | F146: 62#1850 | G146: 1 | H146: 14#1821600|65#3036
B147: 140 | C147: 2 | D147: 270004 | E147: 38 | F147: 62#1900 | G147: 1 | H147: 14#1936800|65#3228
B148: 141 | C148: 2 | D148: 270004 | E148: 39 | F148: 62#1950 | G148: 1 | H148: 14#2052000|65#3420
B149: 142 | C149: 2 | D149: 270004 | E149: 40 | F149: 62#2000 | G149: 1 | H149: 14#2167200|65#3612
B150: 143 | C150: 2 | D150: 270004 | E150: 41 | F150: 62#2050 | G150: 1 | H150: 14#2397600|65#3996
B151: 144 | C151: 2 | D151: 270004 | E151: 42 | F151: 62#2100 | G151: 1 | H151: 14#2628000|65#4380
B152: 145 | C152: 2 | D152: 270004 | E152: 43 | F152: 62#2150 | G152: 1 | H152: 14#2858400|65#4764
B153: 146 | C153: 2 | D153: 270004 | E153: 44 | F153: 62#2200 | G153: 1 | H153: 14#3088800|65#5148
B154: 147 | C154: 2 | D154: 270004 | E154: 45 | F154: 62#2250 | G154: 1 | H154: 14#3319200|65#5532
B155: 148 | C155: 2 | D155: 270004 | E155: 46 | F155: 62#2300 | G155: 1 | H155: 14#3549600|65#5916
B156: 149 | C156: 2 | D156: 270004 | E156: 47 | F156: 62#2350 | G156: 1 | H156: 14#3780000|65#6300
B157: 150 | C157: 2 | D157: 270004 | E157: 48 | F157: 62#2400 | G157: 1 | H157: 14#4010400|65#6684
B158: 151 | C158: 2 | D158: 270004 | E158: 49 | F158: 62#2450 | G158: 1 | H158: 14#4240800|65#7068
B159: 152 | C159: 2 | D159: 270004 | E159: 50 | F159: 62#2500 | G159: 1 | H159: 14#4471200|65#7452
B160: 153 | C160: 2 | D160: 270004 | E160: 51 | F160: 62#2550 | G160: 1 | H160: 14#4932000|65#8220
B161: 154 | C161: 2 | D161: 270004 | E161: 52 | F161: 62#2600 | G161: 1 | H161: 14#5392800|65#8988
B162: 155 | C162: 2 | D162: 270004 | E162: 53 | F162: 62#2650 | G162: 1 | H162: 14#5853600|65#9756
B163: 156 | C163: 2 | D163: 270004 | E163: 54 | F163: 62#2700 | G163: 1 | H163: 14#6314400|65#10524
B164: 157 | C164: 2 | D164: 270004 | E164: 55 | F164: 62#2750 | G164: 1 | H164: 14#6775200|65#11292
B165: 158 | C165: 2 | D165: 270004 | E165: 56 | F165: 62#2800 | G165: 1 | H165: 14#7236000|65#12060
B166: 159 | C166: 2 | D166: 270004 | E166: 57 | F166: 62#2850 | G166: 1 | H166: 14#7696800|65#12828
B167: 160 | C167: 2 | D167: 270004 | E167: 58 | F167: 62#2900 | G167: 1 | H167: 14#8157600|65#13596
B168: 161 | C168: 2 | D168: 270004 | E168: 59 | F168: 62#2950 | G168: 1 | H168: 14#8618400|65#14364
B169: 162 | C169: 2 | D169: 270004 | E169: 60 | F169: 62#3000 | G169: 1 | H169: 14#9079200|65#15132
B170: 163 | C170: 2 | D170: 270004 | E170: 61 | F170: 62#3050 | G170: 1 | H170: 14#10000800|65#16668
B171: 164 | C171: 2 | D171: 270004 | E171: 62 | F171: 62#3100 | G171: 1 | H171: 14#10922400|65#18204
B172: 165 | C172: 2 | D172: 270004 | E172: 63 | F172: 62#3150 | G172: 1 | H172: 14#11844000|65#19740
B173: 166 | C173: 2 | D173: 270004 | E173: 64 | F173: 62#3200 | G173: 1 | H173: 14#12765600|65#21276
B174: 167 | C174: 2 | D174: 270004 | E174: 65 | F174: 62#3250 | G174: 1 | H174: 14#13687200|65#22812
B175: 168 | C175: 2 | D175: 270004 | E175: 66 | F175: 62#3300 | G175: 1 | H175: 14#14608800|65#24348
B176: 169 | C176: 2 | D176: 270004 | E176: 67 | F176: 62#3350 | G176: 1 | H176: 14#15530400|65#25884
B177: 170 | C177: 2 | D177: 270004 | E177: 68 | F177: 62#3400 | G177: 1 | H177: 14#16452000|65#27420
B178: 171 | C178: 2 | D178: 270004 | E178: 69 | F178: 62#3450 | G178: 1 | H178: 14#17373600|65#28956
B179: 172 | C179: 2 | D179: 270004 | E179: 70 | F179: 62#3500 | G179: 1 | H179: 14#18295200|65#30492
B180: 173 | C180: 2 | D180: 270004 | E180: 71 | F180: 62#3550 | G180: 1 | H180: 14#20138400|65#33564
B181: 174 | C181: 2 | D181: 270004 | E181: 72 | F181: 62#3600 | G181: 1 | H181: 14#21981600|65#36636
B182: 175 | C182: 2 | D182: 270004 | E182: 73 | F182: 62#3650 | G182: 1 | H182: 14#23824800|65#39708
B183: 176 | C183: 2 | D183: 270004 | E183: 74 | F183: 62#3700 | G183: 1 | H183: 14#25668000|65#42780
B184: 177 | C184: 2 | D184: 270004 | E184: 75 | F184: 62#3750 | G184: 1 | H184: 14#27511200|65#45852
B185: 178 | C185: 2 | D185: 270004 | E185: 76 | F185: 62#3800 | G185: 1 | H185: 14#29354400|65#48924
B186: 179 | C186: 2 | D186: 270004 | E186: 77 | F186: 62#3850 | G186: 1 | H186: 14#31197600|65#51996
B187: 180 | C187: 2 | D187: 270004 | E187: 78 | F187: 62#3900 | G187: 1 | H187: 14#33040800|65#55068
B188: 181 | C188: 2 | D188: 270004 | E188: 79 | F188: 62#3950 | G188: 1 | H188: 14#34884000|65#58140
B189: 182 | C189: 2 | D189: 270004 | E189: 80 | F189: 62#4000 | G189: 1 | H189: 14#36727200|65#61212
B190: 183 | C190: 2 | D190: 270004 | E190: 81 | F190: 62#4050 | G190: 1 | H190: 14#40413600|65#67356
B191: 184 | C191: 2 | D191: 270004 | E191: 82 | F191: 62#4100 | G191: 1 | H191: 14#44100000|65#73500
B192: 185 | C192: 2 | D192: 270004 | E192: 83 | F192: 62#4150 | G192: 1 | H192: 14#47786400|65#79644
B193: 186 | C193: 2 | D193: 270004 | E193: 84 | F193: 62#4200 | G193: 1 | H193: 14#51472800|65#85788
B194: 187 | C194: 2 | D194: 270004 | E194: 85 | F194: 62#4250 | G194: 1 | H194: 14#55159200|65#91932
B195: 188 | C195: 2 | D195: 270004 | E195: 86 | F195: 62#4300 | G195: 1 | H195: 14#58845600|65#98076
B196: 189 | C196: 2 | D196: 270004 | E196: 87 | F196: 62#4350 | G196: 1 | H196: 14#62532000|65#104220
B197: 190 | C197: 2 | D197: 270004 | E197: 88 | F197: 62#4400 | G197: 1 | H197: 14#66218400|65#110364
B198: 191 | C198: 2 | D198: 270004 | E198: 89 | F198: 62#4450 | G198: 1 | H198: 14#69904800|65#116508
B199: 192 | C199: 2 | D199: 270004 | E199: 90 | F199: 62#4500 | G199: 1 | H199: 14#73591200|65#122652
B200: 193 | C200: 2 | D200: 270004 | E200: 91 | F200: 62#4550 | G200: 1 | H200: 14#80964000|65#134940
... 2231 more rows

Sheet Sheet1
E2: 4 | F2: 14 | H2: =[1]!SUMSTRING(E2:F2,"#") ->  | M2: 3#14 | N2: 4#14 | O2: =[1]!SUMSTRING(M2:N2,"|") -> 
E3: 4 | F3: 30 | H3: =[1]!SUMSTRING(E3:F3,"#") ->  | M3: 3#30 | N3: 4#30 | O3: =[1]!SUMSTRING(M3:N3,"|") -> 
E4: 4 | F4: 47 | H4: =[1]!SUMSTRING(E4:F4,"#") ->  | M4: 3#47 | N4: 4#47 | O4: =[1]!SUMSTRING(M4:N4,"|") -> 
E5: 4 | F5: 65 | H5: =[1]!SUMSTRING(E5:F5,"#") ->  | M5: 3#65 | N5: 4#65 | O5: =[1]!SUMSTRING(M5:N5,"|") -> 
E6: 4 | F6: 84 | H6: =[1]!SUMSTRING(E6:F6,"#") ->  | M6: 3#84 | N6: 4#84 | O6: =[1]!SUMSTRING(M6:N6,"|") -> 
E7: 4 | F7: 105 | H7: =[1]!SUMSTRING(E7:F7,"#") ->  | M7: 3#105 | N7: 4#105 | O7: =[1]!SUMSTRING(M7:N7,"|") -> 
E8: 4 | F8: 128 | H8: =[1]!SUMSTRING(E8:F8,"#") ->  | M8: 3#128 | N8: 4#128 | O8: =[1]!SUMSTRING(M8:N8,"|") -> 
E9: 4 | F9: 151 | H9: =[1]!SUMSTRING(E9:F9,"#") ->  | M9: 3#151 | N9: 4#151 | O9: =[1]!SUMSTRING(M9:N9,"|") -> 
E10: 4 | F10: 176 | H10: =[1]!SUMSTRING(E10:F10,"#") ->  | M10: 3#176 | N10: 4#176 | O10: =[1]!SUMSTRING(M10:N10,"|") -> 
E11: 4 | F11: 202 | H11: =[1]!SUMSTRING(E11:F11,"#") ->  | M11: 3#202 | N11: 4#202 | O11: =[1]!SUMSTRING(M11:N11,"|") -> 
E12: 4 | F12: 230 | H12: =[1]!SUMSTRING(E12:F12,"#") ->  | M12: 3#230 | N12: 4#230 | O12: =[1]!SUMSTRING(M12:N12,"|") -> 
E13: 4 | F13: 258 | H13: =[1]!SUMSTRING(E13:F13,"#") ->  | M13: 3#258 | N13: 4#258 | O13: =[1]!SUMSTRING(M13:N13,"|") -> 
E14: 4 | F14: 288 | H14: =[1]!SUMSTRING(E14:F14,"#") ->  | M14: 3#288 | N14: 4#288 | O14: =[1]!SUMSTRING(M14:N14,"|") -> 
E15: 4 | F15: 320 | H15: =[1]!SUMSTRING(E15:F15,"#") ->  | M15: 3#320 | N15: 4#320 | O15: =[1]!SUMSTRING(M15:N15,"|") -> 
E16: 4 | F16: 352 | H16: =[1]!SUMSTRING(E16:F16,"#") ->  | M16: 3#352 | N16: 4#352 | O16: =[1]!SUMSTRING(M16:N16,"|") -> 
E17: 4 | F17: 386 | H17: =[1]!SUMSTRING(E17:F17,"#") ->  | M17: 3#386 | N17: 4#386 | O17: =[1]!SUMSTRING(M17:N17,"|") -> 
E18: 4 | F18: 422 | H18: =[1]!SUMSTRING(E18:F18,"#") ->  | M18: 3#422 | N18: 4#422 | O18: =[1]!SUMSTRING(M18:N18,"|") -> 
E19: 4 | F19: 458 | H19: =[1]!SUMSTRING(E19:F19,"#") ->  | M19: 3#458 | N19: 4#458 | O19: =[1]!SUMSTRING(M19:N19,"|") -> 
E20: 4 | F20: 496 | H20: =[1]!SUMSTRING(E20:F20,"#") ->  | M20: 3#496 | N20: 4#496 | O20: =[1]!SUMSTRING(M20:N20,"|") -> 
E21: 4 | F21: 535 | H21: =[1]!SUMSTRING(E21:F21,"#") ->  | M21: 3#535 | N21: 4#535 | O21: =[1]!SUMSTRING(M21:N21,"|") -> 
E22: 4 | F22: 576 | H22: =[1]!SUMSTRING(E22:F22,"#") ->  | M22: 3#576 | N22: 4#576 | O22: =[1]!SUMSTRING(M22:N22,"|") -> 
E23: 4 | F23: 618 | H23: =[1]!SUMSTRING(E23:F23,"#") ->  | M23: 3#618 | N23: 4#618 | O23: =[1]!SUMSTRING(M23:N23,"|") -> 
E24: 4 | F24: 661 | H24: =[1]!SUMSTRING(E24:F24,"#") ->  | M24: 3#661 | N24: 4#661 | O24: =[1]!SUMSTRING(M24:N24,"|") -> 
E25: 4 | F25: 705 | H25: =[1]!SUMSTRING(E25:F25,"#") ->  | M25: 3#705 | N25: 4#705 | O25: =[1]!SUMSTRING(M25:N25,"|") -> 
E26: 4 | F26: 751 | H26: =[1]!SUMSTRING(E26:F26,"#") ->  | M26: 3#751 | N26: 4#751 | O26: =[1]!SUMSTRING(M26:N26,"|") -> 
E27: 4 | F27: 798 | H27: =[1]!SUMSTRING(E27:F27,"#") ->  | M27: 3#798 | N27: 4#798 | O27: =[1]!SUMSTRING(M27:N27,"|") -> 
E28: 4 | F28: 847 | H28: =[1]!SUMSTRING(E28:F28,"#") ->  | M28: 3#847 | N28: 4#847 | O28: =[1]!SUMSTRING(M28:N28,"|") -> 
E29: 4 | F29: 896 | H29: =[1]!SUMSTRING(E29:F29,"#") ->  | M29: 3#896 | N29: 4#896 | O29: =[1]!SUMSTRING(M29:N29,"|") -> 
E30: 4 | F30: 947 | H30: =[1]!SUMSTRING(E30:F30,"#") ->  | M30: 3#947 | N30: 4#947 | O30: =[1]!SUMSTRING(M30:N30,"|") -> 
E31: 4 | F31: 1000 | H31: =[1]!SUMSTRING(E31:F31,"#") ->  | M31: 3#1000 | N31: 4#1000 | O31: =[1]!SUMSTRING(M31:N31,"|") -> 

Sheet 属性辅助表
B1: 武卫
B2: 一层 | C2: 1 | D2: 3 | E2: 4 | F2: 54 | G2: 52
A3: 1100 | B3: 0 | C3: 0 | D3: 0 | E3: 0 | F3: 0 | G3: 0 | M3: =$C$2&"#"&C3 -> 1#0 | N3: =$D$2&"#"&D3 -> 3#0 | O3: =$E$2&"#"&E3 -> 4#0 | P3: =$F$2&"#"&F3 -> 54#0 | Q3: =$G$2&"#"&G3 -> 52#0
A4: =A3+1 -> 1101 | B4: 1 | C4: =[2]科技树属性分配!AC4 -> 22 | D4: =[2]科技树属性分配!AD4 -> 2 | E4: =[2]科技树属性分配!AE4 -> 2 | F4: =[2]科技树属性分配!AF4 -> 44 | G4: =[2]科技树属性分配!AG4 -> 44 | M4: =$C$2&"#"&C4 -> 1#22 | N4: =$D$2&"#"&D4 -> 3#2 | O4: =$E$2&"#"&E4 -> 4#2 | P4: =$F$2&"#"&F4 -> 54#44 | Q4: =$G$2&"#"&G4 -> 52#44
A5: =A4+1 -> 1102 | B5: 2 | C5: =[2]科技树属性分配!AC5 -> 63 | D5: =[2]科技树属性分配!AD5 -> 5 | E5: =[2]科技树属性分配!AE5 -> 5 | F5: =[2]科技树属性分配!AF5 -> 109 | G5: =[2]科技树属性分配!AG5 -> 109 | M5: 1#63 | N5: 3#5 | O5: 4#5 | P5: =$F$2&"#"&F5 -> 54#109 | Q5: 52#109
A6: 1103 | B6: 3 | C6: =[2]科技树属性分配!AC6 -> 123 | D6: =[2]科技树属性分配!AD6 -> 9 | E6: =[2]科技树属性分配!AE6 -> 9 | F6: =[2]科技树属性分配!AF6 -> 196 | G6: =[2]科技树属性分配!AG6 -> 196 | M6: 1#123 | N6: 3#9 | O6: 4#9 | P6: 54#196 | Q6: 52#196
A7: 1104 | B7: 4 | C7: =[2]科技树属性分配!AC7 -> 202 | D7: =[2]科技树属性分配!AD7 -> 15 | E7: =[2]科技树属性分配!AE7 -> 15 | F7: =[2]科技树属性分配!AF7 -> 305 | G7: =[2]科技树属性分配!AG7 -> 305 | M7: 1#202 | N7: 3#15 | O7: 4#15 | P7: 54#305 | Q7: 52#305
A8: 1105 | B8: 5 | C8: =[2]科技树属性分配!AC8 -> 300 | D8: =[2]科技树属性分配!AD8 -> 23 | E8: =[2]科技树属性分配!AE8 -> 23 | F8: =[2]科技树属性分配!AF8 -> 436 | G8: =[2]科技树属性分配!AG8 -> 436 | M8: 1#300 | N8: 3#23 | O8: 4#23 | P8: 54#436 | Q8: 52#436
A9: 1106 | B9: 6 | C9: =[2]科技树属性分配!AC9 -> 417 | D9: =[2]科技树属性分配!AD9 -> 31 | E9: =[2]科技树属性分配!AE9 -> 31 | F9: =[2]科技树属性分配!AF9 -> 611 | G9: =[2]科技树属性分配!AG9 -> 611 | M9: 1#417 | N9: 3#31 | O9: 4#31 | P9: 54#611 | Q9: 52#611
A10: 1107 | B10: 7 | C10: =[2]科技树属性分配!AC10 -> 554 | D10: =[2]科技树属性分配!AD10 -> 42 | E10: =[2]科技树属性分配!AE10 -> 42 | F10: =[2]科技树属性分配!AF10 -> 829 | G10: =[2]科技树属性分配!AG10 -> 829 | M10: 1#554 | N10: 3#42 | O10: 4#42 | P10: 54#829 | Q10: 52#829
A11: 1108 | B11: 8 | C11: =[2]科技树属性分配!AC11 -> 709 | D11: =[2]科技树属性分配!AD11 -> 53 | E11: =[2]科技树属性分配!AE11 -> 53 | F11: =[2]科技树属性分配!AF11 -> 1091 | G11: =[2]科技树属性分配!AG11 -> 1091 | M11: 1#709 | N11: 3#53 | O11: 4#53 | P11: 54#1091 | Q11: 52#1091
A12: 1109 | B12: 9 | C12: =[2]科技树属性分配!AC12 -> 884 | D12: =[2]科技树属性分配!AD12 -> 66 | E12: =[2]科技树属性分配!AE12 -> 66 | F12: =[2]科技树属性分配!AF12 -> 1407 | G12: =[2]科技树属性分配!AG12 -> 1407 | M12: 1#884 | N12: 3#66 | O12: 4#66 | P12: 54#1407 | Q12: 52#1407
A13: 1110 | B13: 10 | C13: =[2]科技树属性分配!AC13 -> 1077 | D13: =[2]科技树属性分配!AD13 -> 81 | E13: =[2]科技树属性分配!AE13 -> 81 | F13: =[2]科技树属性分配!AF13 -> 1800 | G13: =[2]科技树属性分配!AG13 -> 1800 | M13: 1#1077 | N13: 3#81 | O13: 4#81 | P13: 54#1800 | Q13: 52#1800
A14: 1111 | B14: 11 | C14: =[2]科技树属性分配!AC14 -> 1290 | D14: =[2]科技树属性分配!AD14 -> 97 | E14: =[2]科技树属性分配!AE14 -> 97 | F14: =[2]科技树属性分配!AF14 -> 0 | G14: =[2]科技树属性分配!AG14 -> 0 | M14: 1#1290 | N14: 3#97 | O14: 4#97 | P14: 54#0 | Q14: 52#0
A15: 1112 | B15: 12 | C15: =[2]科技树属性分配!AC15 -> 1522 | D15: =[2]科技树属性分配!AD15 -> 114 | E15: =[2]科技树属性分配!AE15 -> 114 | F15: =[2]科技树属性分配!AF15 -> 0 | G15: =[2]科技树属性分配!AG15 -> 0 | M15: 1#1522 | N15: 3#114 | O15: 4#114 | P15: 54#0 | Q15: 52#0
A16: 1113 | B16: 13 | C16: =[2]科技树属性分配!AC16 -> 1773 | D16: =[2]科技树属性分配!AD16 -> 133 | E16: =[2]科技树属性分配!AE16 -> 133 | F16: =[2]科技树属性分配!AF16 -> 0 | G16: =[2]科技树属性分配!AG16 -> 0 | M16: 1#1773 | N16: 3#133 | O16: 4#133 | P16: 54#0 | Q16: 52#0
A17: 1114 | B17: 14 | C17: =[2]科技树属性分配!AC17 -> 2043 | D17: =[2]科技树属性分配!AD17 -> 153 | E17: =[2]科技树属性分配!AE17 -> 153 | F17: =[2]科技树属性分配!AF17 -> 0 | G17: =[2]科技树属性分配!AG17 -> 0 | M17: 1#2043 | N17: 3#153 | O17: 4#153 | P17: 54#0 | Q17: 52#0
A18: 1115 | B18: 15 | C18: =[2]科技树属性分配!AC18 -> 2332 | D18: =[2]科技树属性分配!AD18 -> 175 | E18: =[2]科技树属性分配!AE18 -> 175 | F18: =[2]科技树属性分配!AF18 -> 0 | G18: =[2]科技树属性分配!AG18 -> 0 | M18: 1#2332 | N18: 3#175 | O18: 4#175 | P18: 54#0 | Q18: 52#0
A19: 1116 | B19: 16 | C19: =[2]科技树属性分配!AC19 -> 2640 | D19: =[2]科技树属性分配!AD19 -> 198 | E19: =[2]科技树属性分配!AE19 -> 198 | F19: =[2]科技树属性分配!AF19 -> 0 | G19: =[2]科技树属性分配!AG19 -> 0 | M19: 1#2640 | N19: 3#198 | O19: 4#198 | P19: 54#0 | Q19: 52#0
A20: 1117 | B20: 17 | C20: =[2]科技树属性分配!AC20 -> 2967 | D20: =[2]科技树属性分配!AD20 -> 223 | E20: =[2]科技树属性分配!AE20 -> 223 | F20: =[2]科技树属性分配!AF20 -> 0 | G20: =[2]科技树属性分配!AG20 -> 0 | M20: 1#2967 | N20: 3#223 | O20: 4#223 | P20: 54#0 | Q20: 52#0
A21: 1118 | B21: 18 | C21: =[2]科技树属性分配!AC21 -> 3314 | D21: =[2]科技树属性分配!AD21 -> 249 | E21: =[2]科技树属性分配!AE21 -> 249 | F21: =[2]科技树属性分配!AF21 -> 0 | G21: =[2]科技树属性分配!AG21 -> 0 | M21: 1#3314 | N21: 3#249 | O21: 4#249 | P21: 54#0 | Q21: 52#0
A22: 1119 | B22: 19 | C22: =[2]科技树属性分配!AC22 -> 3679 | D22: =[2]科技树属性分配!AD22 -> 276 | E22: =[2]科技树属性分配!AE22 -> 276 | F22: =[2]科技树属性分配!AF22 -> 0 | G22: =[2]科技树属性分配!AG22 -> 0 | M22: 1#3679 | N22: 3#276 | O22: 4#276 | P22: 54#0 | Q22: 52#0
A23: 1120 | B23: 20 | C23: =[2]科技树属性分配!AC23 -> 4064 | D23: =[2]科技树属性分配!AD23 -> 305 | E23: =[2]科技树属性分配!AE23 -> 305 | F23: =[2]科技树属性分配!AF23 -> 0 | G23: =[2]科技树属性分配!AG23 -> 0 | M23: 1#4064 | N23: 3#305 | O23: 4#305 | P23: 54#0 | Q23: 52#0
A24: 1121 | B24: 21 | C24: =[2]科技树属性分配!AC24 -> 4467 | D24: =[2]科技树属性分配!AD24 -> 335 | E24: =[2]科技树属性分配!AE24 -> 335 | F24: =[2]科技树属性分配!AF24 -> 0 | G24: =[2]科技树属性分配!AG24 -> 0 | M24: 1#4467 | N24: 3#335 | O24: 4#335 | P24: 54#0 | Q24: 52#0
A25: 1122 | B25: 22 | C25: =[2]科技树属性分配!AC25 -> 4890 | D25: =[2]科技树属性分配!AD25 -> 367 | E25: =[2]科技树属性分配!AE25 -> 367 | F25: =[2]科技树属性分配!AF25 -> 0 | G25: =[2]科技树属性分配!AG25 -> 0 | M25: 1#4890 | N25: 3#367 | O25: 4#367 | P25: 54#0 | Q25: 52#0
A26: 1123 | B26: 23 | C26: =[2]科技树属性分配!AC26 -> 5332 | D26: =[2]科技树属性分配!AD26 -> 400 | E26: =[2]科技树属性分配!AE26 -> 400 | F26: =[2]科技树属性分配!AF26 -> 0 | G26: =[2]科技树属性分配!AG26 -> 0 | M26: 1#5332 | N26: 3#400 | O26: 4#400 | P26: 54#0 | Q26: 52#0
A27: 1124 | B27: 24 | C27: =[2]科技树属性分配!AC27 -> 5793 | D27: =[2]科技树属性分配!AD27 -> 434 | E27: =[2]科技树属性分配!AE27 -> 434 | F27: =[2]科技树属性分配!AF27 -> 0 | G27: =[2]科技树属性分配!AG27 -> 0 | M27: 1#5793 | N27: 3#434 | O27: 4#434 | P27: 54#0 | Q27: 52#0
A28: 1125 | B28: 25 | C28: =[2]科技树属性分配!AC28 -> 6273 | D28: =[2]科技树属性分配!AD28 -> 470 | E28: =[2]科技树属性分配!AE28 -> 470 | F28: =[2]科技树属性分配!AF28 -> 0 | G28: =[2]科技树属性分配!AG28 -> 0 | M28: 1#6273 | N28: 3#470 | O28: 4#470 | P28: 54#0 | Q28: 52#0
A29: 1126 | B29: 26 | C29: =[2]科技树属性分配!AC29 -> 6775 | D29: =[2]科技树属性分配!AD29 -> 508 | E29: =[2]科技树属性分配!AE29 -> 508 | F29: =[2]科技树属性分配!AF29 -> 0 | G29: =[2]科技树属性分配!AG29 -> 0 | M29: 1#6775 | N29: 3#508 | O29: 4#508 | P29: 54#0 | Q29: 52#0
A30: 1127 | B30: 27 | C30: =[2]科技树属性分配!AC30 -> 7298 | D30: =[2]科技树属性分配!AD30 -> 547 | E30: =[2]科技树属性分配!AE30 -> 547 | F30: =[2]科技树属性分配!AF30 -> 0 | G30: =[2]科技树属性分配!AG30 -> 0 | M30: 1#7298 | N30: 3#547 | O30: 4#547 | P30: 54#0 | Q30: 52#0
A31: 1128 | B31: 28 | C31: =[2]科技树属性分配!AC31 -> 7844 | D31: =[2]科技树属性分配!AD31 -> 588 | E31: =[2]科技树属性分配!AE31 -> 588 | F31: =[2]科技树属性分配!AF31 -> 0 | G31: =[2]科技树属性分配!AG31 -> 0 | M31: 1#7844 | N31: 3#588 | O31: 4#588 | P31: 54#0 | Q31: 52#0
A32: 1129 | B32: 29 | C32: =[2]科技树属性分配!AC32 -> 8411 | D32: =[2]科技树属性分配!AD32 -> 631 | E32: =[2]科技树属性分配!AE32 -> 631 | F32: =[2]科技树属性分配!AF32 -> 0 | G32: =[2]科技树属性分配!AG32 -> 0 | M32: 1#8411 | N32: 3#631 | O32: 4#631 | P32: 54#0 | Q32: 52#0
A33: 1130 | B33: 30 | C33: =[2]科技树属性分配!AC33 -> 9000 | D33: =[2]科技树属性分配!AD33 -> 675 | E33: =[2]科技树属性分配!AE33 -> 675 | F33: =[2]科技树属性分配!AF33 -> 0 | G33: =[2]科技树属性分配!AG33 -> 0 | M33: 1#9000 | N33: 3#675 | O33: 4#675 | P33: 54#0 | Q33: 52#0
B34: 三层 | C34: 2 | D34: 60 | E34: 57 | F34: 53 | G34: 51
A35: =A3+100 -> 1200 | B35: =B3 -> 0 | C35: 0 | D35: 0 | E35: 0 | F35: 0 | G35: 0 | M35: =$C$34&"#"&C35 -> 2#0 | N35: =$D$34&"#"&D35 -> 60#0 | O35: =$E$34&"#"&E35 -> 57#0 | P35: =$F$34&"#"&F35 -> 53#0 | Q35: =$G$34&"#"&G35 -> 51#0
A36: =A4+100 -> 1201 | B36: =B4 -> 1 | C36: =[2]科技树属性分配!AC35 -> 2 | D36: =[2]科技树属性分配!AD35 -> 58 | E36: =[2]科技树属性分配!AE35 -> 58 | F36: =[2]科技树属性分配!AF35 -> 42 | G36: =[2]科技树属性分配!AG35 -> 42 | M36: =$C$34&"#"&C36 -> 2#2 | N36: =$D$34&"#"&D36 -> 60#58 | O36: =$E$34&"#"&E36 -> 57#58 | P36: =$F$34&"#"&F36 -> 53#42 | Q36: =$G$34&"#"&G36 -> 51#42
A37: 1202 | B37: 2 | C37: =[2]科技树属性分配!AC36 -> 7 | D37: =[2]科技树属性分配!AD36 -> 154 | E37: =[2]科技树属性分配!AE36 -> 154 | F37: =[2]科技树属性分配!AF36 -> 108 | G37: =[2]科技树属性分配!AG36 -> 108 | M37: =$C$34&"#"&C37 -> 2#7 | N37: =$D$34&"#"&D37 -> 60#154 | O37: =$E$34&"#"&E37 -> 57#154 | P37: =$F$34&"#"&F37 -> 53#108 | Q37: =$G$34&"#"&G37 -> 51#108
A38: 1203 | B38: 3 | C38: =[2]科技树属性分配!AC37 -> 14 | D38: =[2]科技树属性分配!AD37 -> 288 | E38: =[2]科技树属性分配!AE37 -> 288 | F38: =[2]科技树属性分配!AF37 -> 201 | G38: =[2]科技树属性分配!AG37 -> 201 | M38: 2#14 | N38: 60#288 | O38: 57#288 | P38: 53#201 | Q38: 51#201
A39: 1204 | B39: 4 | C39: =[2]科技树属性分配!AC38 -> 22 | D39: =[2]科技树属性分配!AD38 -> 462 | E39: =[2]科技树属性分配!AE38 -> 462 | F39: =[2]科技树属性分配!AF38 -> 318 | G39: =[2]科技树属性分配!AG38 -> 318 | M39: 2#22 | N39: 60#462 | O39: 57#462 | P39: 53#318 | Q39: 51#318
A40: 1205 | B40: 5 | C40: =[2]科技树属性分配!AC39 -> 33 | D40: =[2]科技树属性分配!AD39 -> 673 | E40: =[2]科技树属性分配!AE39 -> 673 | F40: =[2]科技树属性分配!AF39 -> 462 | G40: =[2]科技树属性分配!AG39 -> 462 | M40: 2#33 | N40: 60#673 | O40: 57#673 | P40: 53#462 | Q40: 51#462
A41: 1206 | B41: 6 | C41: =[2]科技树属性分配!AC40 -> 46 | D41: =[2]科技树属性分配!AD40 -> 962 | E41: =[2]科技树属性分配!AE40 -> 962 | F41: =[2]科技树属性分配!AF40 -> 646 | G41: =[2]科技树属性分配!AG40 -> 646 | M41: 2#46 | N41: 60#962 | O41: 57#962 | P41: 53#646 | Q41: 51#646
A42: 1207 | B42: 7 | C42: =[2]科技树属性分配!AC41 -> 61 | D42: =[2]科技树属性分配!AD41 -> 1327 | E42: =[2]科技树属性分配!AE41 -> 1327 | F42: =[2]科技树属性分配!AF41 -> 872 | G42: =[2]科技树属性分配!AG41 -> 872 | M42: 2#61 | N42: 60#1327 | O42: 57#1327 | P42: 53#872 | Q42: 51#872
A43: 1208 | B43: 8 | C43: =[2]科技树属性分配!AC42 -> 78 | D43: =[2]科技树属性分配!AD42 -> 1769 | E43: =[2]科技树属性分配!AE42 -> 1769 | F43: =[2]科技树属性分配!AF42 -> 1140 | G43: =[2]科技树属性分配!AG42 -> 1140 | M43: 2#78 | N43: 60#1769 | O43: 57#1769 | P43: 53#1140 | Q43: 51#1140
A44: 1209 | B44: 9 | C44: =[2]科技树属性分配!AC43 -> 97 | D44: =[2]科技树属性分配!AD43 -> 2327 | E44: =[2]科技树属性分配!AE43 -> 2327 | F44: =[2]科技树属性分配!AF43 -> 1449 | G44: =[2]科技树属性分配!AG43 -> 1449 | M44: 2#97 | N44: 60#2327 | O44: 57#2327 | P44: 53#1449 | Q44: 51#1449
A45: 1210 | B45: 10 | C45: =[2]科技树属性分配!AC44 -> 119 | D45: =[2]科技树属性分配!AD44 -> 3000 | E45: =[2]科技树属性分配!AE44 -> 3000 | F45: =[2]科技树属性分配!AF44 -> 1800 | G45: =[2]科技树属性分配!AG44 -> 1800 | M45: 2#119 | N45: 60#3000 | O45: 57#3000 | P45: 53#1800 | Q45: 51#1800
A46: 1211 | B46: 11 | C46: =[2]科技树属性分配!AC45 -> 142 | D46: =[2]科技树属性分配!AD45 -> 0 | E46: =[2]科技树属性分配!AE45 -> 0 | F46: =[2]科技树属性分配!AF45 -> 0 | G46: =[2]科技树属性分配!AG45 -> 0 | M46: 2#142 | N46: 60#0 | O46: 57#0 | P46: 53#0 | Q46: 51#0
A47: 1212 | B47: 12 | C47: =[2]科技树属性分配!AC46 -> 167 | D47: =[2]科技树属性分配!AD46 -> 0 | E47: =[2]科技树属性分配!AE46 -> 0 | F47: =[2]科技树属性分配!AF46 -> 0 | G47: =[2]科技树属性分配!AG46 -> 0 | M47: 2#167 | N47: 60#0 | O47: 57#0 | P47: 53#0 | Q47: 51#0
A48: 1213 | B48: 13 | C48: =[2]科技树属性分配!AC47 -> 195 | D48: =[2]科技树属性分配!AD47 -> 0 | E48: =[2]科技树属性分配!AE47 -> 0 | F48: =[2]科技树属性分配!AF47 -> 0 | G48: =[2]科技树属性分配!AG47 -> 0 | M48: 2#195 | N48: 60#0 | O48: 57#0 | P48: 53#0 | Q48: 51#0
A49: 1214 | B49: 14 | C49: =[2]科技树属性分配!AC48 -> 225 | D49: =[2]科技树属性分配!AD48 -> 0 | E49: =[2]科技树属性分配!AE48 -> 0 | F49: =[2]科技树属性分配!AF48 -> 0 | G49: =[2]科技树属性分配!AG48 -> 0 | M49: 2#225 | N49: 60#0 | O49: 57#0 | P49: 53#0 | Q49: 51#0
A50: 1215 | B50: 15 | C50: =[2]科技树属性分配!AC49 -> 257 | D50: =[2]科技树属性分配!AD49 -> 0 | E50: =[2]科技树属性分配!AE49 -> 0 | F50: =[2]科技树属性分配!AF49 -> 0 | G50: =[2]科技树属性分配!AG49 -> 0 | M50: 2#257 | N50: 60#0 | O50: 57#0 | P50: 53#0 | Q50: 51#0
A51: 1216 | B51: 16 | C51: =[2]科技树属性分配!AC50 -> 290 | D51: =[2]科技树属性分配!AD50 -> 0 | E51: =[2]科技树属性分配!AE50 -> 0 | F51: =[2]科技树属性分配!AF50 -> 0 | G51: =[2]科技树属性分配!AG50 -> 0 | M51: 2#290 | N51: 60#0 | O51: 57#0 | P51: 53#0 | Q51: 51#0
A52: 1217 | B52: 17 | C52: =[2]科技树属性分配!AC51 -> 326 | D52: =[2]科技树属性分配!AD51 -> 0 | E52: =[2]科技树属性分配!AE51 -> 0 | F52: =[2]科技树属性分配!AF51 -> 0 | G52: =[2]科技树属性分配!AG51 -> 0 | M52: 2#326 | N52: 60#0 | O52: 57#0 | P52: 53#0 | Q52: 51#0
A53: 1218 | B53: 18 | C53: =[2]科技树属性分配!AC52 -> 365 | D53: =[2]科技树属性分配!AD52 -> 0 | E53: =[2]科技树属性分配!AE52 -> 0 | F53: =[2]科技树属性分配!AF52 -> 0 | G53: =[2]科技树属性分配!AG52 -> 0 | M53: 2#365 | N53: 60#0 | O53: 57#0 | P53: 53#0 | Q53: 51#0
A54: 1219 | B54: 19 | C54: =[2]科技树属性分配!AC53 -> 405 | D54: =[2]科技树属性分配!AD53 -> 0 | E54: =[2]科技树属性分配!AE53 -> 0 | F54: =[2]科技树属性分配!AF53 -> 0 | G54: =[2]科技树属性分配!AG53 -> 0 | M54: 2#405 | N54: 60#0 | O54: 57#0 | P54: 53#0 | Q54: 51#0
A55: 1220 | B55: 20 | C55: =[2]科技树属性分配!AC54 -> 447 | D55: =[2]科技树属性分配!AD54 -> 0 | E55: =[2]科技树属性分配!AE54 -> 0 | F55: =[2]科技树属性分配!AF54 -> 0 | G55: =[2]科技树属性分配!AG54 -> 0 | M55: 2#447 | N55: 60#0 | O55: 57#0 | P55: 53#0 | Q55: 51#0
A56: 1221 | B56: 21 | C56: =[2]科技树属性分配!AC55 -> 491 | D56: =[2]科技树属性分配!AD55 -> 0 | E56: =[2]科技树属性分配!AE55 -> 0 | F56: =[2]科技树属性分配!AF55 -> 0 | G56: =[2]科技树属性分配!AG55 -> 0 | M56: 2#491 | N56: 60#0 | O56: 57#0 | P56: 53#0 | Q56: 51#0
A57: 1222 | B57: 22 | C57: =[2]科技树属性分配!AC56 -> 538 | D57: =[2]科技树属性分配!AD56 -> 0 | E57: =[2]科技树属性分配!AE56 -> 0 | F57: =[2]科技树属性分配!AF56 -> 0 | G57: =[2]科技树属性分配!AG56 -> 0 | M57: 2#538 | N57: 60#0 | O57: 57#0 | P57: 53#0 | Q57: 51#0
A58: 1223 | B58: 23 | C58: =[2]科技树属性分配!AC57 -> 587 | D58: =[2]科技树属性分配!AD57 -> 0 | E58: =[2]科技树属性分配!AE57 -> 0 | F58: =[2]科技树属性分配!AF57 -> 0 | G58: =[2]科技树属性分配!AG57 -> 0 | M58: =$C$34&"#"&C58 -> 2#587 | N58: =$D$34&"#"&D58 -> 60#0 | O58: =$E$34&"#"&E58 -> 57#0 | P58: =$F$34&"#"&F58 -> 53#0 | Q58: =$G$34&"#"&G58 -> 51#0
A59: 1224 | B59: 24 | C59: =[2]科技树属性分配!AC58 -> 637 | D59: =[2]科技树属性分配!AD58 -> 0 | E59: =[2]科技树属性分配!AE58 -> 0 | F59: =[2]科技树属性分配!AF58 -> 0 | G59: =[2]科技树属性分配!AG58 -> 0 | M59: 2#637 | N59: 60#0 | O59: 57#0 | P59: 53#0 | Q59: 51#0
A60: 1225 | B60: 25 | C60: =[2]科技树属性分配!AC59 -> 690 | D60: =[2]科技树属性分配!AD59 -> 0 | E60: =[2]科技树属性分配!AE59 -> 0 | F60: =[2]科技树属性分配!AF59 -> 0 | G60: =[2]科技树属性分配!AG59 -> 0 | M60: 2#690 | N60: 60#0 | O60: 57#0 | P60: 53#0 | Q60: 51#0
A61: 1226 | B61: 26 | C61: =[2]科技树属性分配!AC60 -> 745 | D61: =[2]科技树属性分配!AD60 -> 0 | E61: =[2]科技树属性分配!AE60 -> 0 | F61: =[2]科技树属性分配!AF60 -> 0 | G61: =[2]科技树属性分配!AG60 -> 0 | M61: 2#745 | N61: 60#0 | O61: 57#0 | P61: 53#0 | Q61: 51#0
A62: 1227 | B62: 27 | C62: =[2]科技树属性分配!AC61 -> 803 | D62: =[2]科技树属性分配!AD61 -> 0 | E62: =[2]科技树属性分配!AE61 -> 0 | F62: =[2]科技树属性分配!AF61 -> 0 | G62: =[2]科技树属性分配!AG61 -> 0 | M62: 2#803 | N62: 60#0 | O62: 57#0 | P62: 53#0 | Q62: 51#0
A63: 1228 | B63: 28 | C63: =[2]科技树属性分配!AC62 -> 863 | D63: =[2]科技树属性分配!AD62 -> 0 | E63: =[2]科技树属性分配!AE62 -> 0 | F63: =[2]科技树属性分配!AF62 -> 0 | G63: =[2]科技树属性分配!AG62 -> 0 | M63: 2#863 | N63: 60#0 | O63: 57#0 | P63: 53#0 | Q63: 51#0
A64: 1229 | B64: 29 | C64: =[2]科技树属性分配!AC63 -> 925 | D64: =[2]科技树属性分配!AD63 -> 0 | E64: =[2]科技树属性分配!AE63 -> 0 | F64: =[2]科技树属性分配!AF63 -> 0 | G64: =[2]科技树属性分配!AG63 -> 0 | M64: 2#925 | N64: 60#0 | O64: 57#0 | P64: 53#0 | Q64: 51#0
A65: 1230 | B65: 30 | C65: =[2]科技树属性分配!AC64 -> 990 | D65: =[2]科技树属性分配!AD64 -> 0 | E65: =[2]科技树属性分配!AE64 -> 0 | F65: =[2]科技树属性分配!AF64 -> 0 | G65: =[2]科技树属性分配!AG64 -> 0 | M65: 2#990 | N65: 60#0 | O65: 57#0 | P65: 53#0 | Q65: 51#0
B66: 二层 | C66: 5 | D66: 2 | E66: 1 | F66: 3 | G66: 4 | H66: 53 | I66: 54 | J66: 52 | K66: 51
A67: =A35+100 -> 1300 | B67: 0 | C67: 0 | D67: 0 | E67: 0 | F67: 0 | G67: 0 | H67: 0 | I67: 0 | J67: 0 | K67: 0 | M67: =$C$66&"#"&C67 -> 5#0 | N67: =$D$66&"#"&D67&"|"&$E$66&"#"&E67 -> 2#0|1#0 | O67: =$F$66&"#"&F67&"|"&$G$66&"#"&G67 -> 3#0|4#0 | P67: =$H$66&"#"&H67&"|"&$I$66&"#"&I67 -> 53#0|54#0 | Q67: =$J$66&"#"&J67&"|"&$K$66&"#"&K67 -> 52#0|51#0
A68: 1301 | B68: 1 | C68: =[2]科技树属性分配!AC66 -> 3 | D68: =[2]科技树属性分配!AD66 -> 6 | E68: =[2]科技树属性分配!AE66 -> 86 | F68: =[2]科技树属性分配!AF66 -> 6 | G68: =[2]科技树属性分配!AG66 -> 6 | H68: =[2]科技树属性分配!AH66 -> 36 | I68: =[2]科技树属性分配!AI66 -> 36 | J68: =[2]科技树属性分配!AJ66 -> 36 | K68: =[2]科技树属性分配!AK66 -> 36 | M68: =$C$66&"#"&C68 -> 5#3 | N68: =$D$66&"#"&D68&"|"&$E$66&"#"&E68 -> 2#6|1#86 | O68: =$F$66&"#"&F68&"|"&$G$66&"#"&G68 -> 3#6|4#6 | P68: =$H$66&"#"&H68&"|"&$I$66&"#"&I68 -> 53#36|54#36 | Q68: =$J$66&"#"&J68&"|"&$K$66&"#"&K68 -> 52#36|51#36
A69: 1302 | B69: 2 | C69: =[2]科技树属性分配!AC67 -> 6 | D69: =[2]科技树属性分配!AD67 -> 13 | E69: =[2]科技树属性分配!AE67 -> 182 | F69: =[2]科技树属性分配!AF67 -> 14 | G69: =[2]科技树属性分配!AG67 -> 14 | H69: =[2]科技树属性分配!AH67 -> 91 | I69: =[2]科技树属性分配!AI67 -> 91 | J69: =[2]科技树属性分配!AJ67 -> 91 | K69: =[2]科技树属性分配!AK67 -> 91 | M69: 5#6 | N69: 2#13|1#182 | O69: 3#14|4#14 | P69: 53#91|54#91 | Q69: 52#91|51#91
A70: 1303 | B70: 3 | C70: =[2]科技树属性分配!AC68 -> 9 | D70: =[2]科技树属性分配!AD68 -> 20 | E70: =[2]科技树属性分配!AE68 -> 288 | F70: =[2]科技树属性分配!AF68 -> 22 | G70: =[2]科技树属性分配!AG68 -> 22 | H70: =[2]科技树属性分配!AH68 -> 163 | I70: =[2]科技树属性分配!AI68 -> 163 | J70: =[2]科技树属性分配!AJ68 -> 163 | K70: =[2]科技树属性分配!AK68 -> 163 | M70: 5#9 | N70: 2#20|1#288 | O70: 3#22|4#22 | P70: 53#163|54#163 | Q70: 52#163|51#163
A71: 1304 | B71: 4 | C71: =[2]科技树属性分配!AC69 -> 13 | D71: =[2]科技树属性分配!AD69 -> 28 | E71: =[2]科技树属性分配!AE69 -> 404 | F71: =[2]科技树属性分配!AF69 -> 30 | G71: =[2]科技树属性分配!AG69 -> 30 | H71: =[2]科技树属性分配!AH69 -> 254 | I71: =[2]科技树属性分配!AI69 -> 254 | J71: =[2]科技树属性分配!AJ69 -> 254 | K71: =[2]科技树属性分配!AK69 -> 254 | M71: 5#13 | N71: 2#28|1#404 | O71: 3#30|4#30 | P71: 53#254|54#254 | Q71: 52#254|51#254
A72: 1305 | B72: 5 | C72: =[2]科技树属性分配!AC70 -> 17 | D72: =[2]科技树属性分配!AD70 -> 36 | E72: =[2]科技树属性分配!AE70 -> 530 | F72: =[2]科技树属性分配!AF70 -> 40 | G72: =[2]科技树属性分配!AG70 -> 40 | H72: =[2]科技树属性分配!AH70 -> 363 | I72: =[2]科技树属性分配!AI70 -> 363 | J72: =[2]科技树属性分配!AJ70 -> 363 | K72: =[2]科技树属性分配!AK70 -> 363 | M72: 5#17 | N72: 2#36|1#530 | O72: 3#40|4#40 | P72: 53#363|54#363 | Q72: 52#363|51#363
A73: 1306 | B73: 6 | C73: =[2]科技树属性分配!AC71 -> 21 | D73: =[2]科技树属性分配!AD71 -> 46 | E73: =[2]科技树属性分配!AE71 -> 668 | F73: =[2]科技树属性分配!AF71 -> 50 | G73: =[2]科技树属性分配!AG71 -> 50 | H73: =[2]科技树属性分配!AH71 -> 489 | I73: =[2]科技树属性分配!AI71 -> 489 | J73: =[2]科技树属性分配!AJ71 -> 489 | K73: =[2]科技树属性分配!AK71 -> 489 | M73: 5#21 | N73: 2#46|1#668 | O73: 3#50|4#50 | P73: 53#489|54#489 | Q73: 52#489|51#489
A74: 1307 | B74: 7 | C74: =[2]科技树属性分配!AC72 -> 26 | D74: =[2]科技树属性分配!AD72 -> 56 | E74: =[2]科技树属性分配!AE72 -> 818 | F74: =[2]科技树属性分配!AF72 -> 61 | G74: =[2]科技树属性分配!AG72 -> 61 | H74: =[2]科技树属性分配!AH72 -> 634 | I74: =[2]科技树属性分配!AI72 -> 634 | J74: =[2]科技树属性分配!AJ72 -> 634 | K74: =[2]科技树属性分配!AK72 -> 634 | M74: 5#26 | N74: 2#56|1#818 | O74: 3#61|4#61 | P74: 53#634|54#634 | Q74: 52#634|51#634
A75: 1308 | B75: 8 | C75: =[2]科技树属性分配!AC73 -> 31 | D75: =[2]科技树属性分配!AD73 -> 67 | E75: =[2]科技树属性分配!AE73 -> 980 | F75: =[2]科技树属性分配!AF73 -> 74 | G75: =[2]科技树属性分配!AG73 -> 74 | H75: =[2]科技树属性分配!AH73 -> 798 | I75: =[2]科技树属性分配!AI73 -> 798 | J75: =[2]科技树属性分配!AJ73 -> 798 | K75: =[2]科技树属性分配!AK73 -> 798 | M75: 5#31 | N75: 2#67|1#980 | O75: 3#74|4#74 | P75: 53#798|54#798 | Q75: 52#798|51#798
A76: 1309 | B76: 9 | C76: =[2]科技树属性分配!AC74 -> 36 | D76: =[2]科技树属性分配!AD74 -> 79 | E76: =[2]科技树属性分配!AE74 -> 1155 | F76: =[2]科技树属性分配!AF74 -> 87 | G76: =[2]科技树属性分配!AG74 -> 87 | H76: =[2]科技树属性分配!AH74 -> 986 | I76: =[2]科技树属性分配!AI74 -> 986 | J76: =[2]科技树属性分配!AJ74 -> 986 | K76: =[2]科技树属性分配!AK74 -> 986 | M76: 5#36 | N76: 2#79|1#1155 | O76: 3#87|4#87 | P76: 53#986|54#986 | Q76: 52#986|51#986
A77: 1310 | B77: 10 | C77: =[2]科技树属性分配!AC75 -> 42 | D77: =[2]科技树属性分配!AD75 -> 92 | E77: =[2]科技树属性分配!AE75 -> 1342 | F77: =[2]科技树属性分配!AF75 -> 101 | G77: =[2]科技树属性分配!AG75 -> 101 | H77: =[2]科技树属性分配!AH75 -> 1200 | I77: =[2]科技树属性分配!AI75 -> 1200 | J77: =[2]科技树属性分配!AJ75 -> 1200 | K77: =[2]科技树属性分配!AK75 -> 1200 | M77: 5#42 | N77: 2#92|1#1342 | O77: 3#101|4#101 | P77: 53#1200|54#1200 | Q77: 52#1200|51#1200
A78: 1311 | B78: 11 | C78: =[2]科技树属性分配!AC76 -> 48 | D78: =[2]科技树属性分配!AD76 -> 106 | E78: =[2]科技树属性分配!AE76 -> 1548 | F78: =[2]科技树属性分配!AF76 -> 116 | G78: =[2]科技树属性分配!AG76 -> 116 | H78: =[2]科技树属性分配!AH76 -> 0 | I78: =[2]科技树属性分配!AI76 -> 0 | J78: =[2]科技树属性分配!AJ76 -> 0 | K78: =[2]科技树属性分配!AK76 -> 0 | M78: 5#48 | N78: 2#106|1#1548 | O78: 3#116|4#116 | P78: 53#0|54#0 | Q78: 52#0|51#0
A79: 1312 | B79: 12 | C79: =[2]科技树属性分配!AC77 -> 55 | D79: =[2]科技树属性分配!AD77 -> 122 | E79: =[2]科技树属性分配!AE77 -> 1772 | F79: =[2]科技树属性分配!AF77 -> 133 | G79: =[2]科技树属性分配!AG77 -> 133 | H79: =[2]科技树属性分配!AH77 -> 0 | I79: =[2]科技树属性分配!AI77 -> 0 | J79: =[2]科技树属性分配!AJ77 -> 0 | K79: =[2]科技树属性分配!AK77 -> 0 | M79: 5#55 | N79: 2#122|1#1772 | O79: 3#133|4#133 | P79: 53#0|54#0 | Q79: 52#0|51#0
A80: 1313 | B80: 13 | C80: =[2]科技树属性分配!AC78 -> 63 | D80: =[2]科技树属性分配!AD78 -> 139 | E80: =[2]科技树属性分配!AE78 -> 2015 | F80: =[2]科技树属性分配!AF78 -> 151 | G80: =[2]科技树属性分配!AG78 -> 151 | H80: =[2]科技树属性分配!AH78 -> 0 | I80: =[2]科技树属性分配!AI78 -> 0 | J80: =[2]科技树属性分配!AJ78 -> 0 | K80: =[2]科技树属性分配!AK78 -> 0 | M80: 5#63 | N80: 2#139|1#2015 | O80: 3#151|4#151 | P80: 53#0|54#0 | Q80: 52#0|51#0
A81: 1314 | B81: 14 | C81: =[2]科技树属性分配!AC79 -> 71 | D81: =[2]科技树属性分配!AD79 -> 156 | E81: =[2]科技树属性分配!AE79 -> 2276 | F81: =[2]科技树属性分配!AF79 -> 171 | G81: =[2]科技树属性分配!AG79 -> 171 | H81: =[2]科技树属性分配!AH79 -> 0 | I81: =[2]科技树属性分配!AI79 -> 0 | J81: =[2]科技树属性分配!AJ79 -> 0 | K81: =[2]科技树属性分配!AK79 -> 0 | M81: 5#71 | N81: 2#156|1#2276 | O81: 3#171|4#171 | P81: 53#0|54#0 | Q81: 52#0|51#0
A82: 1315 | B82: 15 | C82: =[2]科技树属性分配!AC80 -> 80 | D82: =[2]科技树属性分配!AD80 -> 176 | E82: =[2]科技树属性分配!AE80 -> 2555 | F82: =[2]科技树属性分配!AF80 -> 192 | G82: =[2]科技树属性分配!AG80 -> 192 | H82: =[2]科技树属性分配!AH80 -> 0 | I82: =[2]科技树属性分配!AI80 -> 0 | J82: =[2]科技树属性分配!AJ80 -> 0 | K82: =[2]科技树属性分配!AK80 -> 0 | M82: 5#80 | N82: 2#176|1#2555 | O82: 3#192|4#192 | P82: 53#0|54#0 | Q82: 52#0|51#0
A83: 1316 | B83: 16 | C83: =[2]科技树属性分配!AC81 -> 89 | D83: =[2]科技树属性分配!AD81 -> 196 | E83: =[2]科技树属性分配!AE81 -> 2857 | F83: =[2]科技树属性分配!AF81 -> 214 | G83: =[2]科技树属性分配!AG81 -> 214 | H83: =[2]科技树属性分配!AH81 -> 0 | I83: =[2]科技树属性分配!AI81 -> 0 | J83: =[2]科技树属性分配!AJ81 -> 0 | K83: =[2]科技树属性分配!AK81 -> 0 | M83: 5#89 | N83: 2#196|1#2857 | O83: 3#214|4#214 | P83: 53#0|54#0 | Q83: 52#0|51#0
A84: 1317 | B84: 17 | C84: =[2]科技树属性分配!AC82 -> 99 | D84: =[2]科技树属性分配!AD82 -> 219 | E84: =[2]科技树属性分配!AE82 -> 3181 | F84: =[2]科技树属性分配!AF82 -> 239 | G84: =[2]科技树属性分配!AG82 -> 239 | H84: =[2]科技树属性分配!AH82 -> 0 | I84: =[2]科技树属性分配!AI82 -> 0 | J84: =[2]科技树属性分配!AJ82 -> 0 | K84: =[2]科技树属性分配!AK82 -> 0 | M84: 5#99 | N84: 2#219|1#3181 | O84: 3#239|4#239 | P84: 53#0|54#0 | Q84: 52#0|51#0
A85: 1318 | B85: 18 | C85: =[2]科技树属性分配!AC83 -> 110 | D85: =[2]科技树属性分配!AD83 -> 242 | E85: =[2]科技树属性分配!AE83 -> 3527 | F85: =[2]科技树属性分配!AF83 -> 265 | G85: =[2]科技树属性分配!AG83 -> 265 | H85: =[2]科技树属性分配!AH83 -> 0 | I85: =[2]科技树属性分配!AI83 -> 0 | J85: =[2]科技树属性分配!AJ83 -> 0 | K85: =[2]科技树属性分配!AK83 -> 0 | M85: 5#110 | N85: 2#242|1#3527 | O85: 3#265|4#265 | P85: 53#0|54#0 | Q85: 52#0|51#0
A86: 1319 | B86: 19 | C86: =[2]科技树属性分配!AC84 -> 122 | D86: =[2]科技树属性分配!AD84 -> 268 | E86: =[2]科技树属性分配!AE84 -> 3895 | F86: =[2]科技树属性分配!AF84 -> 292 | G86: =[2]科技树属性分配!AG84 -> 292 | H86: =[2]科技树属性分配!AH84 -> 0 | I86: =[2]科技树属性分配!AI84 -> 0 | J86: =[2]科技树属性分配!AJ84 -> 0 | K86: =[2]科技树属性分配!AK84 -> 0 | M86: 5#122 | N86: 2#268|1#3895 | O86: 3#292|4#292 | P86: 53#0|54#0 | Q86: 52#0|51#0
A87: 1320 | B87: 20 | C87: =[2]科技树属性分配!AC85 -> 134 | D87: =[2]科技树属性分配!AD85 -> 295 | E87: =[2]科技树属性分配!AE85 -> 4286 | F87: =[2]科技树属性分配!AF85 -> 321 | G87: =[2]科技树属性分配!AG85 -> 321 | H87: =[2]科技树属性分配!AH85 -> 0 | I87: =[2]科技树属性分配!AI85 -> 0 | J87: =[2]科技树属性分配!AJ85 -> 0 | K87: =[2]科技树属性分配!AK85 -> 0 | M87: 5#134 | N87: 2#295|1#4286 | O87: 3#321|4#321 | P87: 53#0|54#0 | Q87: 52#0|51#0
A88: 1321 | B88: 21 | C88: =[2]科技树属性分配!AC86 -> 147 | D88: =[2]科技树属性分配!AD86 -> 323 | E88: =[2]科技树属性分配!AE86 -> 4701 | F88: =[2]科技树属性分配!AF86 -> 353 | G88: =[2]科技树属性分配!AG86 -> 353 | H88: =[2]科技树属性分配!AH86 -> 0 | I88: =[2]科技树属性分配!AI86 -> 0 | J88: =[2]科技树属性分配!AJ86 -> 0 | K88: =[2]科技树属性分配!AK86 -> 0 | M88: 5#147 | N88: 2#323|1#4701 | O88: 3#353|4#353 | P88: 53#0|54#0 | Q88: 52#0|51#0
A89: 1322 | B89: 22 | C89: =[2]科技树属性分配!AC87 -> 161 | D89: =[2]科技树属性分配!AD87 -> 353 | E89: =[2]科技树属性分配!AE87 -> 5141 | F89: =[2]科技树属性分配!AF87 -> 386 | G89: =[2]科技树属性分配!AG87 -> 386 | H89: =[2]科技树属性分配!AH87 -> 0 | I89: =[2]科技树属性分配!AI87 -> 0 | J89: =[2]科技树属性分配!AJ87 -> 0 | K89: =[2]科技树属性分配!AK87 -> 0 | M89: 5#161 | N89: 2#353|1#5141 | O89: 3#386|4#386 | P89: 53#0|54#0 | Q89: 52#0|51#0
A90: 1323 | B90: 23 | C90: =[2]科技树属性分配!AC88 -> 175 | D90: =[2]科技树属性分配!AD88 -> 385 | E90: =[2]科技树属性分配!AE88 -> 5605 | F90: =[2]科技树属性分配!AF88 -> 420 | G90: =[2]科技树属性分配!AG88 -> 420 | H90: =[2]科技树属性分配!AH88 -> 0 | I90: =[2]科技树属性分配!AI88 -> 0 | J90: =[2]科技树属性分配!AJ88 -> 0 | K90: =[2]科技树属性分配!AK88 -> 0 | M90: 5#175 | N90: 2#385|1#5605 | O90: 3#420|4#420 | P90: 53#0|54#0 | Q90: 52#0|51#0
A91: 1324 | B91: 24 | C91: =[2]科技树属性分配!AC89 -> 190 | D91: =[2]科技树属性分配!AD89 -> 419 | E91: =[2]科技树属性分配!AE89 -> 6094 | F91: =[2]科技树属性分配!AF89 -> 457 | G91: =[2]科技树属性分配!AG89 -> 457 | H91: =[2]科技树属性分配!AH89 -> 0 | I91: =[2]科技树属性分配!AI89 -> 0 | J91: =[2]科技树属性分配!AJ89 -> 0 | K91: =[2]科技树属性分配!AK89 -> 0 | M91: 5#190 | N91: 2#419|1#6094 | O91: 3#457|4#457 | P91: 53#0|54#0 | Q91: 52#0|51#0
A92: 1325 | B92: 25 | C92: =[2]科技树属性分配!AC90 -> 206 | D92: =[2]科技树属性分配!AD90 -> 454 | E92: =[2]科技树属性分配!AE90 -> 6607 | F92: =[2]科技树属性分配!AF90 -> 496 | G92: =[2]科技树属性分配!AG90 -> 496 | H92: =[2]科技树属性分配!AH90 -> 0 | I92: =[2]科技树属性分配!AI90 -> 0 | J92: =[2]科技树属性分配!AJ90 -> 0 | K92: =[2]科技树属性分配!AK90 -> 0 | M92: 5#206 | N92: 2#454|1#6607 | O92: 3#496|4#496 | P92: 53#0|54#0 | Q92: 52#0|51#0
A93: 1326 | B93: 26 | C93: =[2]科技树属性分配!AC91 -> 223 | D93: =[2]科技树属性分配!AD91 -> 492 | E93: =[2]科技树属性分配!AE91 -> 7149 | F93: =[2]科技树属性分配!AF91 -> 536 | G93: =[2]科技树属性分配!AG91 -> 536 | H93: =[2]科技树属性分配!AH91 -> 0 | I93: =[2]科技树属性分配!AI91 -> 0 | J93: =[2]科技树属性分配!AJ91 -> 0 | K93: =[2]科技树属性分配!AK91 -> 0 | M93: 5#223 | N93: 2#492|1#7149 | O93: 3#536|4#536 | P93: 53#0|54#0 | Q93: 52#0|51#0
A94: 1327 | B94: 27 | C94: =[2]科技树属性分配!AC92 -> 241 | D94: =[2]科技树属性分配!AD92 -> 531 | E94: =[2]科技树属性分配!AE92 -> 7719 | F94: =[2]科技树属性分配!AF92 -> 579 | G94: =[2]科技树属性分配!AG92 -> 579 | H94: =[2]科技树属性分配!AH92 -> 0 | I94: =[2]科技树属性分配!AI92 -> 0 | J94: =[2]科技树属性分配!AJ92 -> 0 | K94: =[2]科技树属性分配!AK92 -> 0 | M94: 5#241 | N94: 2#531|1#7719 | O94: 3#579|4#579 | P94: 53#0|54#0 | Q94: 52#0|51#0
A95: 1328 | B95: 28 | C95: =[2]科技树属性分配!AC93 -> 260 | D95: =[2]科技树属性分配!AD93 -> 572 | E95: =[2]科技树属性分配!AE93 -> 8318 | F95: =[2]科技树属性分配!AF93 -> 624 | G95: =[2]科技树属性分配!AG93 -> 624 | H95: =[2]科技树属性分配!AH93 -> 0 | I95: =[2]科技树属性分配!AI93 -> 0 | J95: =[2]科技树属性分配!AJ93 -> 0 | K95: =[2]科技树属性分配!AK93 -> 0 | M95: 5#260 | N95: 2#572|1#8318 | O95: 3#624|4#624 | P95: 53#0|54#0 | Q95: 52#0|51#0
A96: 1329 | B96: 29 | C96: =[2]科技树属性分配!AC94 -> 280 | D96: =[2]科技树属性分配!AD94 -> 615 | E96: =[2]科技树属性分配!AE94 -> 8945 | F96: =[2]科技树属性分配!AF94 -> 671 | G96: =[2]科技树属性分配!AG94 -> 671 | H96: =[2]科技树属性分配!AH94 -> 0 | I96: =[2]科技树属性分配!AI94 -> 0 | J96: =[2]科技树属性分配!AJ94 -> 0 | K96: =[2]科技树属性分配!AK94 -> 0 | M96: 5#280 | N96: 2#615|1#8945 | O96: 3#671|4#671 | P96: 53#0|54#0 | Q96: 52#0|51#0
A97: 1330 | B97: 30 | C97: =[2]科技树属性分配!AC95 -> 300 | D97: =[2]科技树属性分配!AD95 -> 660 | E97: =[2]科技树属性分配!AE95 -> 9600 | F97: =[2]科技树属性分配!AF95 -> 720 | G97: =[2]科技树属性分配!AG95 -> 720 | H97: =[2]科技树属性分配!AH95 -> 0 | I97: =[2]科技树属性分配!AI95 -> 0 | J97: =[2]科技树属性分配!AJ95 -> 0 | K97: =[2]科技树属性分配!AK95 -> 0 | M97: 5#300 | N97: 2#660|1#9600 | O97: 3#720|4#720 | P97: 53#0|54#0 | Q97: 52#0|51#0
B98: 武卫
B99: 一层 | C99: =C2 -> 1 | D99: =D2 -> 3 | E99: =E2 -> 4 | F99: =F2 -> 54 | G99: =G2 -> 52
A100: =A3+1000 -> 2100 | B100: =B3 -> 0 | C100: =B100 -> 0 | D100: =C100 -> 0 | E100: =D100 -> 0 | F100: =E100 -> 0 | G100: =F100 -> 0 | M100: =$C$2&"#"&C100 -> 1#0 | N100: =$D$2&"#"&D100 -> 3#0 | O100: =$E$2&"#"&E100 -> 4#0 | P100: =$F$2&"#"&F100 -> 54#0 | Q100: =$G$2&"#"&G100 -> 52#0
A101: =A4+1000 -> 2101 | B101: =B4 -> 1 | C101: =[2]科技树属性分配!AC98 -> 44 | D101: =[2]科技树属性分配!AD98 -> 2 | E101: =[2]科技树属性分配!AE98 -> 2 | F101: =[2]科技树属性分配!AF98 -> 44 | G101: =[2]科技树属性分配!AG98 -> 44 | M101: 1#44 | N101: 3#2 | O101: 4#2 | P101: 54#44 | Q101: 52#44
A102: 2102 | B102: 2 | C102: =[2]科技树属性分配!AC99 -> 125 | D102: =[2]科技树属性分配!AD99 -> 5 | E102: =[2]科技树属性分配!AE99 -> 5 | F102: =[2]科技树属性分配!AF99 -> 109 | G102: =[2]科技树属性分配!AG99 -> 109 | M102: 1#125 | N102: 3#5 | O102: 4#5 | P102: 54#109 | Q102: 52#109
A103: 2103 | B103: 3 | C103: =[2]科技树属性分配!AC100 -> 245 | D103: =[2]科技树属性分配!AD100 -> 10 | E103: =[2]科技树属性分配!AE100 -> 10 | F103: =[2]科技树属性分配!AF100 -> 196 | G103: =[2]科技树属性分配!AG100 -> 196 | M103: 1#245 | N103: 3#10 | O103: 4#10 | P103: 54#196 | Q103: 52#196
A104: 2104 | B104: 4 | C104: =[2]科技树属性分配!AC101 -> 404 | D104: =[2]科技树属性分配!AD101 -> 17 | E104: =[2]科技树属性分配!AE101 -> 17 | F104: =[2]科技树属性分配!AF101 -> 305 | G104: =[2]科技树属性分配!AG101 -> 305 | M104: 1#404 | N104: 3#17 | O104: 4#17 | P104: 54#305 | Q104: 52#305
A105: 2105 | B105: 5 | C105: =[2]科技树属性分配!AC102 -> 600 | D105: =[2]科技树属性分配!AD102 -> 26 | E105: =[2]科技树属性分配!AE102 -> 26 | F105: =[2]科技树属性分配!AF102 -> 436 | G105: =[2]科技树属性分配!AG102 -> 436 | M105: 1#600 | N105: 3#26 | O105: 4#26 | P105: 54#436 | Q105: 52#436
A106: 2106 | B106: 6 | C106: =[2]科技树属性分配!AC103 -> 835 | D106: =[2]科技树属性分配!AD103 -> 35 | E106: =[2]科技树属性分配!AE103 -> 35 | F106: =[2]科技树属性分配!AF103 -> 611 | G106: =[2]科技树属性分配!AG103 -> 611 | M106: 1#835 | N106: 3#35 | O106: 4#35 | P106: 54#611 | Q106: 52#611
A107: 2107 | B107: 7 | C107: =[2]科技树属性分配!AC104 -> 1107 | D107: =[2]科技树属性分配!AD104 -> 47 | E107: =[2]科技树属性分配!AE104 -> 47 | F107: =[2]科技树属性分配!AF104 -> 829 | G107: =[2]科技树属性分配!AG104 -> 829 | M107: 1#1107 | N107: 3#47 | O107: 4#47 | P107: 54#829 | Q107: 52#829
A108: 2108 | B108: 8 | C108: =[2]科技树属性分配!AC105 -> 1418 | D108: =[2]科技树属性分配!AD105 -> 60 | E108: =[2]科技树属性分配!AE105 -> 60 | F108: =[2]科技树属性分配!AF105 -> 1091 | G108: =[2]科技树属性分配!AG105 -> 1091 | M108: 1#1418 | N108: 3#60 | O108: 4#60 | P108: 54#1091 | Q108: 52#1091
A109: 2109 | B109: 9 | C109: =[2]科技树属性分配!AC106 -> 1767 | D109: =[2]科技树属性分配!AD106 -> 75 | E109: =[2]科技树属性分配!AE106 -> 75 | F109: =[2]科技树属性分配!AF106 -> 1407 | G109: =[2]科技树属性分配!AG106 -> 1407 | M109: 1#1767 | N109: 3#75 | O109: 4#75 | P109: 54#1407 | Q109: 52#1407
A110: 2110 | B110: 10 | C110: =[2]科技树属性分配!AC107 -> 2155 | D110: =[2]科技树属性分配!AD107 -> 92 | E110: =[2]科技树属性分配!AE107 -> 92 | F110: =[2]科技树属性分配!AF107 -> 1800 | G110: =[2]科技树属性分配!AG107 -> 1800 | M110: 1#2155 | N110: 3#92 | O110: 4#92 | P110: 54#1800 | Q110: 52#1800
A111: 2111 | B111: 11 | C111: =[2]科技树属性分配!AC108 -> 2580 | D111: =[2]科技树属性分配!AD108 -> 110 | E111: =[2]科技树属性分配!AE108 -> 110 | F111: =[2]科技树属性分配!AF108 -> 0 | G111: =[2]科技树属性分配!AG108 -> 0 | M111: 1#2580 | N111: 3#110 | O111: 4#110 | P111: 54#0 | Q111: 52#0
A112: 2112 | B112: 12 | C112: =[2]科技树属性分配!AC109 -> 3044 | D112: =[2]科技树属性分配!AD109 -> 129 | E112: =[2]科技树属性分配!AE109 -> 129 | F112: =[2]科技树属性分配!AF109 -> 0 | G112: =[2]科技树属性分配!AG109 -> 0 | M112: 1#3044 | N112: 3#129 | O112: 4#129 | P112: 54#0 | Q112: 52#0
A113: 2113 | B113: 13 | C113: =[2]科技树属性分配!AC110 -> 3545 | D113: =[2]科技树属性分配!AD110 -> 151 | E113: =[2]科技树属性分配!AE110 -> 151 | F113: =[2]科技树属性分配!AF110 -> 0 | G113: =[2]科技树属性分配!AG110 -> 0 | M113: 1#3545 | N113: 3#151 | O113: 4#151 | P113: 54#0 | Q113: 52#0
A114: 2114 | B114: 14 | C114: =[2]科技树属性分配!AC111 -> 4085 | D114: =[2]科技树属性分配!AD111 -> 174 | E114: =[2]科技树属性分配!AE111 -> 174 | F114: =[2]科技树属性分配!AF111 -> 0 | G114: =[2]科技树属性分配!AG111 -> 0 | M114: 1#4085 | N114: 3#174 | O114: 4#174 | P114: 54#0 | Q114: 52#0
A115: 2115 | B115: 15 | C115: =[2]科技树属性分配!AC112 -> 4664 | D115: =[2]科技树属性分配!AD112 -> 198 | E115: =[2]科技树属性分配!AE112 -> 198 | F115: =[2]科技树属性分配!AF112 -> 0 | G115: =[2]科技树属性分配!AG112 -> 0 | M115: 1#4664 | N115: 3#198 | O115: 4#198 | P115: 54#0 | Q115: 52#0
A116: 2116 | B116: 16 | C116: =[2]科技树属性分配!AC113 -> 5280 | D116: =[2]科技树属性分配!AD113 -> 224 | E116: =[2]科技树属性分配!AE113 -> 224 | F116: =[2]科技树属性分配!AF113 -> 0 | G116: =[2]科技树属性分配!AG113 -> 0 | M116: 1#5280 | N116: 3#224 | O116: 4#224 | P116: 54#0 | Q116: 52#0
A117: 2117 | B117: 17 | C117: =[2]科技树属性分配!AC114 -> 5935 | D117: =[2]科技树属性分配!AD114 -> 252 | E117: =[2]科技树属性分配!AE114 -> 252 | F117: =[2]科技树属性分配!AF114 -> 0 | G117: =[2]科技树属性分配!AG114 -> 0 | M117: 1#5935 | N117: 3#252 | O117: 4#252 | P117: 54#0 | Q117: 52#0
A118: 2118 | B118: 18 | C118: =[2]科技树属性分配!AC115 -> 6627 | D118: =[2]科技树属性分配!AD115 -> 282 | E118: =[2]科技树属性分配!AE115 -> 282 | F118: =[2]科技树属性分配!AF115 -> 0 | G118: =[2]科技树属性分配!AG115 -> 0 | M118: 1#6627 | N118: 3#282 | O118: 4#282 | P118: 54#0 | Q118: 52#0
A119: 2119 | B119: 19 | C119: =[2]科技树属性分配!AC116 -> 7358 | D119: =[2]科技树属性分配!AD116 -> 313 | E119: =[2]科技树属性分配!AE116 -> 313 | F119: =[2]科技树属性分配!AF116 -> 0 | G119: =[2]科技树属性分配!AG116 -> 0 | M119: 1#7358 | N119: 3#313 | O119: 4#313 | P119: 54#0 | Q119: 52#0
A120: 2120 | B120: 20 | C120: =[2]科技树属性分配!AC117 -> 8127 | D120: =[2]科技树属性分配!AD117 -> 345 | E120: =[2]科技树属性分配!AE117 -> 345 | F120: =[2]科技树属性分配!AF117 -> 0 | G120: =[2]科技树属性分配!AG117 -> 0 | M120: 1#8127 | N120: 3#345 | O120: 4#345 | P120: 54#0 | Q120: 52#0
A121: 2121 | B121: 21 | C121: =[2]科技树属性分配!AC118 -> 8935 | D121: =[2]科技树属性分配!AD118 -> 380 | E121: =[2]科技树属性分配!AE118 -> 380 | F121: =[2]科技树属性分配!AF118 -> 0 | G121: =[2]科技树属性分配!AG118 -> 0 | M121: 1#8935 | N121: 3#380 | O121: 4#380 | P121: 54#0 | Q121: 52#0
A122: 2122 | B122: 22 | C122: =[2]科技树属性分配!AC119 -> 9780 | D122: =[2]科技树属性分配!AD119 -> 416 | E122: =[2]科技树属性分配!AE119 -> 416 | F122: =[2]科技树属性分配!AF119 -> 0 | G122: =[2]科技树属性分配!AG119 -> 0 | M122: 1#9780 | N122: 3#416 | O122: 4#416 | P122: 54#0 | Q122: 52#0
A123: 2123 | B123: 23 | C123: =[2]科技树属性分配!AC120 -> 10664 | D123: =[2]科技树属性分配!AD120 -> 453 | E123: =[2]科技树属性分配!AE120 -> 453 | F123: =[2]科技树属性分配!AF120 -> 0 | G123: =[2]科技树属性分配!AG120 -> 0 | M123: 1#10664 | N123: 3#453 | O123: 4#453 | P123: 54#0 | Q123: 52#0
A124: 2124 | B124: 24 | C124: =[2]科技树属性分配!AC121 -> 11585 | D124: =[2]科技树属性分配!AD121 -> 492 | E124: =[2]科技树属性分配!AE121 -> 492 | F124: =[2]科技树属性分配!AF121 -> 0 | G124: =[2]科技树属性分配!AG121 -> 0 | M124: 1#11585 | N124: 3#492 | O124: 4#492 | P124: 54#0 | Q124: 52#0
A125: 2125 | B125: 25 | C125: =[2]科技树属性分配!AC122 -> 12545 | D125: =[2]科技树属性分配!AD122 -> 533 | E125: =[2]科技树属性分配!AE122 -> 533 | F125: =[2]科技树属性分配!AF122 -> 0 | G125: =[2]科技树属性分配!AG122 -> 0 | M125: 1#12545 | N125: 3#533 | O125: 4#533 | P125: 54#0 | Q125: 52#0
A126: 2126 | B126: 26 | C126: =[2]科技树属性分配!AC123 -> 13549 | D126: =[2]科技树属性分配!AD123 -> 576 | E126: =[2]科技树属性分配!AE123 -> 576 | F126: =[2]科技树属性分配!AF123 -> 0 | G126: =[2]科技树属性分配!AG123 -> 0 | M126: 1#13549 | N126: 3#576 | O126: 4#576 | P126: 54#0 | Q126: 52#0
A127: 2127 | B127: 27 | C127: =[2]科技树属性分配!AC124 -> 14596 | D127: =[2]科技树属性分配!AD124 -> 620 | E127: =[2]科技树属性分配!AE124 -> 620 | F127: =[2]科技树属性分配!AF124 -> 0 | G127: =[2]科技树属性分配!AG124 -> 0 | M127: 1#14596 | N127: 3#620 | O127: 4#620 | P127: 54#0 | Q127: 52#0
A128: 2128 | B128: 28 | C128: =[2]科技树属性分配!AC125 -> 15687 | D128: =[2]科技树属性分配!AD125 -> 667 | E128: =[2]科技树属性分配!AE125 -> 667 | F128: =[2]科技树属性分配!AF125 -> 0 | G128: =[2]科技树属性分配!AG125 -> 0 | M128: 1#15687 | N128: 3#667 | O128: 4#667 | P128: 54#0 | Q128: 52#0
A129: 2129 | B129: 29 | C129: =[2]科技树属性分配!AC126 -> 16822 | D129: =[2]科技树属性分配!AD126 -> 715 | E129: =[2]科技树属性分配!AE126 -> 715 | F129: =[2]科技树属性分配!AF126 -> 0 | G129: =[2]科技树属性分配!AG126 -> 0 | M129: 1#16822 | N129: 3#715 | O129: 4#715 | P129: 54#0 | Q129: 52#0
A130: 2130 | B130: 30 | C130: =[2]科技树属性分配!AC127 -> 18000 | D130: =[2]科技树属性分配!AD127 -> 765 | E130: =[2]科技树属性分配!AE127 -> 765 | F130: =[2]科技树属性分配!AF127 -> 0 | G130: =[2]科技树属性分配!AG127 -> 0 | M130: 1#18000 | N130: 3#765 | O130: 4#765 | P130: 54#0 | Q130: 52#0
B131: 三层 | C131: =C34 -> 2 | D131: 55 | E131: 56 | F131: =F34 -> 53 | G131: =G34 -> 51
A132: =A35+1000 -> 2200 | B132: =B100 -> 0 | C132: =B132 -> 0 | D132: =C132 -> 0 | E132: =D132 -> 0 | F132: =E132 -> 0 | G132: =F132 -> 0 | M132: =$C$34&"#"&C132 -> 2#0 | N132: =$D$131&"#"&D132 -> 55#0 | O132: =$E$131&"#"&E132 -> 56#0 | P132: =$F$34&"#"&F132 -> 53#0 | Q132: =$G$34&"#"&G132 -> 51#0
A133: 2201 | B133: 1 | C133: =[2]科技树属性分配!AC129 -> 2 | D133: =[2]科技树属性分配!AD129 -> 58 | E133: =[2]科技树属性分配!AE129 -> 58 | F133: =[2]科技树属性分配!AF129 -> 42 | G133: =[2]科技树属性分配!AG129 -> 42 | M133: 2#2 | N133: =$D$131&"#"&D133 -> 55#58 | O133: =$E$131&"#"&E133 -> 56#58 | P133: 53#42 | Q133: 51#42
A134: 2202 | B134: 2 | C134: =[2]科技树属性分配!AC130 -> 5 | D134: =[2]科技树属性分配!AD130 -> 154 | E134: =[2]科技树属性分配!AE130 -> 154 | F134: =[2]科技树属性分配!AF130 -> 108 | G134: =[2]科技树属性分配!AG130 -> 108 | M134: 2#5 | N134: 55#154 | O134: 56#154 | P134: 53#108 | Q134: 51#108
A135: 2203 | B135: 3 | C135: =[2]科技树属性分配!AC131 -> 10 | D135: =[2]科技树属性分配!AD131 -> 288 | E135: =[2]科技树属性分配!AE131 -> 288 | F135: =[2]科技树属性分配!AF131 -> 201 | G135: =[2]科技树属性分配!AG131 -> 201 | M135: 2#10 | N135: 55#288 | O135: 56#288 | P135: 53#201 | Q135: 51#201
A136: 2204 | B136: 4 | C136: =[2]科技树属性分配!AC132 -> 16 | D136: =[2]科技树属性分配!AD132 -> 462 | E136: =[2]科技树属性分配!AE132 -> 462 | F136: =[2]科技树属性分配!AF132 -> 318 | G136: =[2]科技树属性分配!AG132 -> 318 | M136: 2#16 | N136: 55#462 | O136: 56#462 | P136: 53#318 | Q136: 51#318
A137: 2205 | B137: 5 | C137: =[2]科技树属性分配!AC133 -> 24 | D137: =[2]科技树属性分配!AD133 -> 673 | E137: =[2]科技树属性分配!AE133 -> 673 | F137: =[2]科技树属性分配!AF133 -> 462 | G137: =[2]科技树属性分配!AG133 -> 462 | M137: 2#24 | N137: 55#673 | O137: 56#673 | P137: 53#462 | Q137: 51#462
A138: 2206 | B138: 6 | C138: =[2]科技树属性分配!AC134 -> 33 | D138: =[2]科技树属性分配!AD134 -> 962 | E138: =[2]科技树属性分配!AE134 -> 962 | F138: =[2]科技树属性分配!AF134 -> 646 | G138: =[2]科技树属性分配!AG134 -> 646 | M138: 2#33 | N138: 55#962 | O138: 56#962 | P138: 53#646 | Q138: 51#646
A139: 2207 | B139: 7 | C139: =[2]科技树属性分配!AC135 -> 44 | D139: =[2]科技树属性分配!AD135 -> 1327 | E139: =[2]科技树属性分配!AE135 -> 1327 | F139: =[2]科技树属性分配!AF135 -> 872 | G139: =[2]科技树属性分配!AG135 -> 872 | M139: 2#44 | N139: 55#1327 | O139: 56#1327 | P139: 53#872 | Q139: 51#872
A140: 2208 | B140: 8 | C140: =[2]科技树属性分配!AC136 -> 57 | D140: =[2]科技树属性分配!AD136 -> 1769 | E140: =[2]科技树属性分配!AE136 -> 1769 | F140: =[2]科技树属性分配!AF136 -> 1140 | G140: =[2]科技树属性分配!AG136 -> 1140 | M140: 2#57 | N140: 55#1769 | O140: 56#1769 | P140: 53#1140 | Q140: 51#1140
A141: 2209 | B141: 9 | C141: =[2]科技树属性分配!AC137 -> 71 | D141: =[2]科技树属性分配!AD137 -> 2327 | E141: =[2]科技树属性分配!AE137 -> 2327 | F141: =[2]科技树属性分配!AF137 -> 1449 | G141: =[2]科技树属性分配!AG137 -> 1449 | M141: 2#71 | N141: 55#2327 | O141: 56#2327 | P141: 53#1449 | Q141: 51#1449
A142: 2210 | B142: 10 | C142: =[2]科技树属性分配!AC138 -> 86 | D142: =[2]科技树属性分配!AD138 -> 3000 | E142: =[2]科技树属性分配!AE138 -> 3000 | F142: =[2]科技树属性分配!AF138 -> 1800 | G142: =[2]科技树属性分配!AG138 -> 1800 | M142: 2#86 | N142: 55#3000 | O142: 56#3000 | P142: 53#1800 | Q142: 51#1800
A143: 2211 | B143: 11 | C143: =[2]科技树属性分配!AC139 -> 103 | D143: =[2]科技树属性分配!AD139 -> 0 | E143: =[2]科技树属性分配!AE139 -> 0 | F143: =[2]科技树属性分配!AF139 -> 0 | G143: =[2]科技树属性分配!AG139 -> 0 | M143: 2#103 | N143: 55#0 | O143: 56#0 | P143: 53#0 | Q143: 51#0
A144: 2212 | B144: 12 | C144: =[2]科技树属性分配!AC140 -> 122 | D144: =[2]科技树属性分配!AD140 -> 0 | E144: =[2]科技树属性分配!AE140 -> 0 | F144: =[2]科技树属性分配!AF140 -> 0 | G144: =[2]科技树属性分配!AG140 -> 0 | M144: 2#122 | N144: 55#0 | O144: 56#0 | P144: 53#0 | Q144: 51#0
A145: 2213 | B145: 13 | C145: =[2]科技树属性分配!AC141 -> 142 | D145: =[2]科技树属性分配!AD141 -> 0 | E145: =[2]科技树属性分配!AE141 -> 0 | F145: =[2]科技树属性分配!AF141 -> 0 | G145: =[2]科技树属性分配!AG141 -> 0 | M145: 2#142 | N145: 55#0 | O145: 56#0 | P145: 53#0 | Q145: 51#0
A146: 2214 | B146: 14 | C146: =[2]科技树属性分配!AC142 -> 163 | D146: =[2]科技树属性分配!AD142 -> 0 | E146: =[2]科技树属性分配!AE142 -> 0 | F146: =[2]科技树属性分配!AF142 -> 0 | G146: =[2]科技树属性分配!AG142 -> 0 | M146: 2#163 | N146: 55#0 | O146: 56#0 | P146: 53#0 | Q146: 51#0
A147: 2215 | B147: 15 | C147: =[2]科技树属性分配!AC143 -> 187 | D147: =[2]科技树属性分配!AD143 -> 0 | E147: =[2]科技树属性分配!AE143 -> 0 | F147: =[2]科技树属性分配!AF143 -> 0 | G147: =[2]科技树属性分配!AG143 -> 0 | M147: 2#187 | N147: 55#0 | O147: 56#0 | P147: 53#0 | Q147: 51#0
A148: 2216 | B148: 16 | C148: =[2]科技树属性分配!AC144 -> 211 | D148: =[2]科技树属性分配!AD144 -> 0 | E148: =[2]科技树属性分配!AE144 -> 0 | F148: =[2]科技树属性分配!AF144 -> 0 | G148: =[2]科技树属性分配!AG144 -> 0 | M148: 2#211 | N148: 55#0 | O148: 56#0 | P148: 53#0 | Q148: 51#0
A149: 2217 | B149: 17 | C149: =[2]科技树属性分配!AC145 -> 237 | D149: =[2]科技树属性分配!AD145 -> 0 | E149: =[2]科技树属性分配!AE145 -> 0 | F149: =[2]科技树属性分配!AF145 -> 0 | G149: =[2]科技树属性分配!AG145 -> 0 | M149: 2#237 | N149: 55#0 | O149: 56#0 | P149: 53#0 | Q149: 51#0
A150: 2218 | B150: 18 | C150: =[2]科技树属性分配!AC146 -> 265 | D150: =[2]科技树属性分配!AD146 -> 0 | E150: =[2]科技树属性分配!AE146 -> 0 | F150: =[2]科技树属性分配!AF146 -> 0 | G150: =[2]科技树属性分配!AG146 -> 0 | M150: 2#265 | N150: 55#0 | O150: 56#0 | P150: 53#0 | Q150: 51#0
A151: 2219 | B151: 19 | C151: =[2]科技树属性分配!AC147 -> 294 | D151: =[2]科技树属性分配!AD147 -> 0 | E151: =[2]科技树属性分配!AE147 -> 0 | F151: =[2]科技树属性分配!AF147 -> 0 | G151: =[2]科技树属性分配!AG147 -> 0 | M151: 2#294 | N151: 55#0 | O151: 56#0 | P151: 53#0 | Q151: 51#0
A152: 2220 | B152: 20 | C152: =[2]科技树属性分配!AC148 -> 325 | D152: =[2]科技树属性分配!AD148 -> 0 | E152: =[2]科技树属性分配!AE148 -> 0 | F152: =[2]科技树属性分配!AF148 -> 0 | G152: =[2]科技树属性分配!AG148 -> 0 | M152: 2#325 | N152: 55#0 | O152: 56#0 | P152: 53#0 | Q152: 51#0
A153: 2221 | B153: 21 | C153: =[2]科技树属性分配!AC149 -> 357 | D153: =[2]科技树属性分配!AD149 -> 0 | E153: =[2]科技树属性分配!AE149 -> 0 | F153: =[2]科技树属性分配!AF149 -> 0 | G153: =[2]科技树属性分配!AG149 -> 0 | M153: 2#357 | N153: 55#0 | O153: 56#0 | P153: 53#0 | Q153: 51#0
A154: 2222 | B154: 22 | C154: =[2]科技树属性分配!AC150 -> 391 | D154: =[2]科技树属性分配!AD150 -> 0 | E154: =[2]科技树属性分配!AE150 -> 0 | F154: =[2]科技树属性分配!AF150 -> 0 | G154: =[2]科技树属性分配!AG150 -> 0 | M154: 2#391 | N154: 55#0 | O154: 56#0 | P154: 53#0 | Q154: 51#0
A155: 2223 | B155: 23 | C155: =[2]科技树属性分配!AC151 -> 427 | D155: =[2]科技树属性分配!AD151 -> 0 | E155: =[2]科技树属性分配!AE151 -> 0 | F155: =[2]科技树属性分配!AF151 -> 0 | G155: =[2]科技树属性分配!AG151 -> 0 | M155: 2#427 | N155: 55#0 | O155: 56#0 | P155: 53#0 | Q155: 51#0
A156: 2224 | B156: 24 | C156: =[2]科技树属性分配!AC152 -> 463 | D156: =[2]科技树属性分配!AD152 -> 0 | E156: =[2]科技树属性分配!AE152 -> 0 | F156: =[2]科技树属性分配!AF152 -> 0 | G156: =[2]科技树属性分配!AG152 -> 0 | M156: 2#463 | N156: 55#0 | O156: 56#0 | P156: 53#0 | Q156: 51#0
A157: 2225 | B157: 25 | C157: =[2]科技树属性分配!AC153 -> 502 | D157: =[2]科技树属性分配!AD153 -> 0 | E157: =[2]科技树属性分配!AE153 -> 0 | F157: =[2]科技树属性分配!AF153 -> 0 | G157: =[2]科技树属性分配!AG153 -> 0 | M157: =$C$34&"#"&C157 -> 2#502 | N157: 55#0 | O157: 56#0 | P157: =$F$34&"#"&F157 -> 53#0 | Q157: =$G$34&"#"&G157 -> 51#0
A158: 2226 | B158: 26 | C158: =[2]科技树属性分配!AC154 -> 542 | D158: =[2]科技树属性分配!AD154 -> 0 | E158: =[2]科技树属性分配!AE154 -> 0 | F158: =[2]科技树属性分配!AF154 -> 0 | G158: =[2]科技树属性分配!AG154 -> 0 | M158: 2#542 | N158: 55#0 | O158: 56#0 | P158: 53#0 | Q158: 51#0
A159: 2227 | B159: 27 | C159: =[2]科技树属性分配!AC155 -> 584 | D159: =[2]科技树属性分配!AD155 -> 0 | E159: =[2]科技树属性分配!AE155 -> 0 | F159: =[2]科技树属性分配!AF155 -> 0 | G159: =[2]科技树属性分配!AG155 -> 0 | M159: 2#584 | N159: 55#0 | O159: 56#0 | P159: 53#0 | Q159: 51#0
A160: 2228 | B160: 28 | C160: =[2]科技树属性分配!AC156 -> 627 | D160: =[2]科技树属性分配!AD156 -> 0 | E160: =[2]科技树属性分配!AE156 -> 0 | F160: =[2]科技树属性分配!AF156 -> 0 | G160: =[2]科技树属性分配!AG156 -> 0 | M160: 2#627 | N160: 55#0 | O160: 56#0 | P160: 53#0 | Q160: 51#0
A161: 2229 | B161: 29 | C161: =[2]科技树属性分配!AC157 -> 673 | D161: =[2]科技树属性分配!AD157 -> 0 | E161: =[2]科技树属性分配!AE157 -> 0 | F161: =[2]科技树属性分配!AF157 -> 0 | G161: =[2]科技树属性分配!AG157 -> 0 | M161: 2#673 | N161: 55#0 | O161: 56#0 | P161: 53#0 | Q161: 51#0
A162: 2230 | B162: 30 | C162: =[2]科技树属性分配!AC158 -> 720 | D162: =[2]科技树属性分配!AD158 -> 0 | E162: =[2]科技树属性分配!AE158 -> 0 | F162: =[2]科技树属性分配!AF158 -> 0 | G162: =[2]科技树属性分配!AG158 -> 0 | M162: 2#720 | N162: 55#0 | O162: 56#0 | P162: 53#0 | Q162: 51#0
B163: 三层 | C163: 5 | D163: 2 | E163: 1 | F163: 3 | G163: 4 | H163: 53 | I163: 54 | J163: 52 | K163: 51
A164: =A67+1000 -> 2300 | B164: 0 | C164: 0 | D164: 0 | E164: 0 | F164: 0 | G164: 0 | H164: 0 | I164: 0 | J164: 0 | K164: 0 | M164: =$C$66&"#"&C164 -> 5#0 | N164: =$D$66&"#"&D164&"|"&$E$66&"#"&E164 -> 2#0|1#0 | O164: =$F$66&"#"&F164&"|"&$G$66&"#"&G164 -> 3#0|4#0 | P164: =$H$66&"#"&H164&"|"&$I$66&"#"&I164 -> 53#0|54#0 | Q164: =$J$66&"#"&J164&"|"&$K$66&"#"&K164 -> 52#0|51#0
A165: 2301 | B165: 1 | C165: =[2]科技树属性分配!AC160 -> 4 | D165: =[2]科技树属性分配!AD160 -> 4 | E165: =[2]科技树属性分配!AE160 -> 108 | F165: =[2]科技树属性分配!AF160 -> 5 | G165: =[2]科技树属性分配!AG160 -> 5 | H165: =[2]科技树属性分配!AH160 -> 36 | I165: =[2]科技树属性分配!AI160 -> 36 | J165: =[2]科技树属性分配!AJ160 -> 36 | K165: =[2]科技树属性分配!AK160 -> 36 | M165: 5#4 | N165: 2#4|1#108 | O165: 3#5|4#5 | P165: 53#36|54#36 | Q165: 52#36|51#36
A166: 2302 | B166: 2 | C166: =[2]科技树属性分配!AC161 -> 8 | D166: =[2]科技树属性分配!AD161 -> 9 | E166: =[2]科技树属性分配!AE161 -> 228 | F166: =[2]科技树属性分配!AF161 -> 10 | G166: =[2]科技树属性分配!AG161 -> 10 | H166: =[2]科技树属性分配!AH161 -> 91 | I166: =[2]科技树属性分配!AI161 -> 91 | J166: =[2]科技树属性分配!AJ161 -> 91 | K166: =[2]科技树属性分配!AK161 -> 91 | M166: 5#8 | N166: 2#9|1#228 | O166: 3#10|4#10 | P166: 53#91|54#91 | Q166: 52#91|51#91
A167: 2303 | B167: 3 | C167: =[2]科技树属性分配!AC162 -> 12 | D167: =[2]科技树属性分配!AD162 -> 14 | E167: =[2]科技树属性分配!AE162 -> 360 | F167: =[2]科技树属性分配!AF162 -> 15 | G167: =[2]科技树属性分配!AG162 -> 15 | H167: =[2]科技树属性分配!AH162 -> 163 | I167: =[2]科技树属性分配!AI162 -> 163 | J167: =[2]科技树属性分配!AJ162 -> 163 | K167: =[2]科技树属性分配!AK162 -> 163 | M167: 5#12 | N167: 2#14|1#360 | O167: 3#15|4#15 | P167: 53#163|54#163 | Q167: 52#163|51#163
A168: 2304 | B168: 4 | C168: =[2]科技树属性分配!AC163 -> 17 | D168: =[2]科技树属性分配!AD163 -> 20 | E168: =[2]科技树属性分配!AE163 -> 505 | F168: =[2]科技树属性分配!AF163 -> 21 | G168: =[2]科技树属性分配!AG163 -> 21 | H168: =[2]科技树属性分配!AH163 -> 254 | I168: =[2]科技树属性分配!AI163 -> 254 | J168: =[2]科技树属性分配!AJ163 -> 254 | K168: =[2]科技树属性分配!AK163 -> 254 | M168: 5#17 | N168: 2#20|1#505 | O168: 3#21|4#21 | P168: 53#254|54#254 | Q168: 52#254|51#254
A169: 2305 | B169: 5 | C169: =[2]科技树属性分配!AC164 -> 22 | D169: =[2]科技树属性分配!AD164 -> 26 | E169: =[2]科技树属性分配!AE164 -> 662 | F169: =[2]科技树属性分配!AF164 -> 28 | G169: =[2]科技树属性分配!AG164 -> 28 | H169: =[2]科技树属性分配!AH164 -> 363 | I169: =[2]科技树属性分配!AI164 -> 363 | J169: =[2]科技树属性分配!AJ164 -> 363 | K169: =[2]科技树属性分配!AK164 -> 363 | M169: 5#22 | N169: 2#26|1#662 | O169: 3#28|4#28 | P169: 53#363|54#363 | Q169: 52#363|51#363
A170: 2306 | B170: 6 | C170: =[2]科技树属性分配!AC165 -> 28 | D170: =[2]科技树属性分配!AD165 -> 33 | E170: =[2]科技树属性分配!AE165 -> 834 | F170: =[2]科技树属性分配!AF165 -> 35 | G170: =[2]科技树属性分配!AG165 -> 35 | H170: =[2]科技树属性分配!AH165 -> 489 | I170: =[2]科技树属性分配!AI165 -> 489 | J170: =[2]科技树属性分配!AJ165 -> 489 | K170: =[2]科技树属性分配!AK165 -> 489 | M170: 5#28 | N170: 2#33|1#834 | O170: 3#35|4#35 | P170: 53#489|54#489 | Q170: 52#489|51#489
A171: 2307 | B171: 7 | C171: =[2]科技树属性分配!AC166 -> 34 | D171: =[2]科技树属性分配!AD166 -> 41 | E171: =[2]科技树属性分配!AE166 -> 1022 | F171: =[2]科技树属性分配!AF166 -> 43 | G171: =[2]科技树属性分配!AG166 -> 43 | H171: =[2]科技树属性分配!AH166 -> 634 | I171: =[2]科技树属性分配!AI166 -> 634 | J171: =[2]科技树属性分配!AJ166 -> 634 | K171: =[2]科技树属性分配!AK166 -> 634 | M171: 5#34 | N171: 2#41|1#1022 | O171: 3#43|4#43 | P171: 53#634|54#634 | Q171: 52#634|51#634
A172: 2308 | B172: 8 | C172: =[2]科技树属性分配!AC167 -> 41 | D172: =[2]科技树属性分配!AD167 -> 49 | E172: =[2]科技树属性分配!AE167 -> 1225 | F172: =[2]科技树属性分配!AF167 -> 52 | G172: =[2]科技树属性分配!AG167 -> 52 | H172: =[2]科技树属性分配!AH167 -> 798 | I172: =[2]科技树属性分配!AI167 -> 798 | J172: =[2]科技树属性分配!AJ167 -> 798 | K172: =[2]科技树属性分配!AK167 -> 798 | M172: 5#41 | N172: 2#49|1#1225 | O172: 3#52|4#52 | P172: 53#798|54#798 | Q172: 52#798|51#798
A173: 2309 | B173: 9 | C173: =[2]科技树属性分配!AC168 -> 48 | D173: =[2]科技树属性分配!AD168 -> 58 | E173: =[2]科技树属性分配!AE168 -> 1444 | F173: =[2]科技树属性分配!AF168 -> 61 | G173: =[2]科技树属性分配!AG168 -> 61 | H173: =[2]科技树属性分配!AH168 -> 986 | I173: =[2]科技树属性分配!AI168 -> 986 | J173: =[2]科技树属性分配!AJ168 -> 986 | K173: =[2]科技树属性分配!AK168 -> 986 | M173: 5#48 | N173: 2#58|1#1444 | O173: 3#61|4#61 | P173: 53#986|54#986 | Q173: 52#986|51#986
A174: 2310 | B174: 10 | C174: =[2]科技树属性分配!AC169 -> 56 | D174: =[2]科技树属性分配!AD169 -> 67 | E174: =[2]科技树属性分配!AE169 -> 1678 | F174: =[2]科技树属性分配!AF169 -> 71 | G174: =[2]科技树属性分配!AG169 -> 71 | H174: =[2]科技树属性分配!AH169 -> 1200 | I174: =[2]科技树属性分配!AI169 -> 1200 | J174: =[2]科技树属性分配!AJ169 -> 1200 | K174: =[2]科技树属性分配!AK169 -> 1200 | M174: 5#56 | N174: 2#67|1#1678 | O174: 3#71|4#71 | P174: 53#1200|54#1200 | Q174: 52#1200|51#1200
A175: 2311 | B175: 11 | C175: =[2]科技树属性分配!AC170 -> 65 | D175: =[2]科技树属性分配!AD170 -> 77 | E175: =[2]科技树属性分配!AE170 -> 1935 | F175: =[2]科技树属性分配!AF170 -> 82 | G175: =[2]科技树属性分配!AG170 -> 82 | H175: =[2]科技树属性分配!AH170 -> 0 | I175: =[2]科技树属性分配!AI170 -> 0 | J175: =[2]科技树属性分配!AJ170 -> 0 | K175: =[2]科技树属性分配!AK170 -> 0 | M175: 5#65 | N175: 2#77|1#1935 | O175: 3#82|4#82 | P175: 53#0|54#0 | Q175: 52#0|51#0
A176: 2312 | B176: 12 | C176: =[2]科技树属性分配!AC171 -> 74 | D176: =[2]科技树属性分配!AD171 -> 89 | E176: =[2]科技树属性分配!AE171 -> 2215 | F176: =[2]科技树属性分配!AF171 -> 94 | G176: =[2]科技树属性分配!AG171 -> 94 | H176: =[2]科技树属性分配!AH171 -> 0 | I176: =[2]科技树属性分配!AI171 -> 0 | J176: =[2]科技树属性分配!AJ171 -> 0 | K176: =[2]科技树属性分配!AK171 -> 0 | M176: 5#74 | N176: 2#89|1#2215 | O176: 3#94|4#94 | P176: 53#0|54#0 | Q176: 52#0|51#0
A177: 2313 | B177: 13 | C177: =[2]科技树属性分配!AC172 -> 84 | D177: =[2]科技树属性分配!AD172 -> 101 | E177: =[2]科技树属性分配!AE172 -> 2519 | F177: =[2]科技树属性分配!AF172 -> 107 | G177: =[2]科技树属性分配!AG172 -> 107 | H177: =[2]科技树属性分配!AH172 -> 0 | I177: =[2]科技树属性分配!AI172 -> 0 | J177: =[2]科技树属性分配!AJ172 -> 0 | K177: =[2]科技树属性分配!AK172 -> 0 | M177: 5#84 | N177: 2#101|1#2519 | O177: 3#107|4#107 | P177: 53#0|54#0 | Q177: 52#0|51#0
A178: 2314 | B178: 14 | C178: =[2]科技树属性分配!AC173 -> 95 | D178: =[2]科技树属性分配!AD173 -> 114 | E178: =[2]科技树属性分配!AE173 -> 2845 | F178: =[2]科技树属性分配!AF173 -> 121 | G178: =[2]科技树属性分配!AG173 -> 121 | H178: =[2]科技树属性分配!AH173 -> 0 | I178: =[2]科技树属性分配!AI173 -> 0 | J178: =[2]科技树属性分配!AJ173 -> 0 | K178: =[2]科技树属性分配!AK173 -> 0 | M178: 5#95 | N178: 2#114|1#2845 | O178: 3#121|4#121 | P178: 53#0|54#0 | Q178: 52#0|51#0
A179: 2315 | B179: 15 | C179: =[2]科技树属性分配!AC174 -> 106 | D179: =[2]科技树属性分配!AD174 -> 128 | E179: =[2]科技树属性分配!AE174 -> 3194 | F179: =[2]科技树属性分配!AF174 -> 136 | G179: =[2]科技树属性分配!AG174 -> 136 | H179: =[2]科技树属性分配!AH174 -> 0 | I179: =[2]科技树属性分配!AI174 -> 0 | J179: =[2]科技树属性分配!AJ174 -> 0 | K179: =[2]科技树属性分配!AK174 -> 0 | M179: 5#106 | N179: 2#128|1#3194 | O179: 3#136|4#136 | P179: 53#0|54#0 | Q179: 52#0|51#0
A180: 2316 | B180: 16 | C180: =[2]科技树属性分配!AC175 -> 119 | D180: =[2]科技树属性分配!AD175 -> 143 | E180: =[2]科技树属性分配!AE175 -> 3572 | F180: =[2]科技树属性分配!AF175 -> 152 | G180: =[2]科技树属性分配!AG175 -> 152 | H180: =[2]科技树属性分配!AH175 -> 0 | I180: =[2]科技树属性分配!AI175 -> 0 | J180: =[2]科技树属性分配!AJ175 -> 0 | K180: =[2]科技树属性分配!AK175 -> 0 | M180: 5#119 | N180: 2#143|1#3572 | O180: 3#152|4#152 | P180: 53#0|54#0 | Q180: 52#0|51#0
A181: 2317 | B181: 17 | C181: =[2]科技树属性分配!AC176 -> 133 | D181: =[2]科技树属性分配!AD176 -> 159 | E181: =[2]科技树属性分配!AE176 -> 3976 | F181: =[2]科技树属性分配!AF176 -> 169 | G181: =[2]科技树属性分配!AG176 -> 169 | H181: =[2]科技树属性分配!AH176 -> 0 | I181: =[2]科技树属性分配!AI176 -> 0 | J181: =[2]科技树属性分配!AJ176 -> 0 | K181: =[2]科技树属性分配!AK176 -> 0 | M181: 5#133 | N181: 2#159|1#3976 | O181: 3#169|4#169 | P181: 53#0|54#0 | Q181: 52#0|51#0
A182: 2318 | B182: 18 | C182: =[2]科技树属性分配!AC177 -> 147 | D182: =[2]科技树属性分配!AD177 -> 176 | E182: =[2]科技树属性分配!AE177 -> 4409 | F182: =[2]科技树属性分配!AF177 -> 187 | G182: =[2]科技树属性分配!AG177 -> 187 | H182: =[2]科技树属性分配!AH177 -> 0 | I182: =[2]科技树属性分配!AI177 -> 0 | J182: =[2]科技树属性分配!AJ177 -> 0 | K182: =[2]科技树属性分配!AK177 -> 0 | M182: 5#147 | N182: 2#176|1#4409 | O182: 3#187|4#187 | P182: 53#0|54#0 | Q182: 52#0|51#0
A183: 2319 | B183: 19 | C183: =[2]科技树属性分配!AC178 -> 162 | D183: =[2]科技树属性分配!AD178 -> 195 | E183: =[2]科技树属性分配!AE178 -> 4869 | F183: =[2]科技树属性分配!AF178 -> 207 | G183: =[2]科技树属性分配!AG178 -> 207 | H183: =[2]科技树属性分配!AH178 -> 0 | I183: =[2]科技树属性分配!AI178 -> 0 | J183: =[2]科技树属性分配!AJ178 -> 0 | K183: =[2]科技树属性分配!AK178 -> 0 | M183: 5#162 | N183: 2#195|1#4869 | O183: 3#207|4#207 | P183: 53#0|54#0 | Q183: 52#0|51#0
A184: 2320 | B184: 20 | C184: =[2]科技树属性分配!AC179 -> 179 | D184: =[2]科技树属性分配!AD179 -> 214 | E184: =[2]科技树属性分配!AE179 -> 5357 | F184: =[2]科技树属性分配!AF179 -> 228 | G184: =[2]科技树属性分配!AG179 -> 228 | H184: =[2]科技树属性分配!AH179 -> 0 | I184: =[2]科技树属性分配!AI179 -> 0 | J184: =[2]科技树属性分配!AJ179 -> 0 | K184: =[2]科技树属性分配!AK179 -> 0 | M184: 5#179 | N184: 2#214|1#5357 | O184: 3#228|4#228 | P184: 53#0|54#0 | Q184: 52#0|51#0
A185: 2321 | B185: 21 | C185: =[2]科技树属性分配!AC180 -> 196 | D185: =[2]科技树属性分配!AD180 -> 235 | E185: =[2]科技树属性分配!AE180 -> 5876 | F185: =[2]科技树属性分配!AF180 -> 250 | G185: =[2]科技树属性分配!AG180 -> 250 | H185: =[2]科技树属性分配!AH180 -> 0 | I185: =[2]科技树属性分配!AI180 -> 0 | J185: =[2]科技树属性分配!AJ180 -> 0 | K185: =[2]科技树属性分配!AK180 -> 0 | M185: 5#196 | N185: 2#235|1#5876 | O185: 3#250|4#250 | P185: 53#0|54#0 | Q185: 52#0|51#0
A186: 2322 | B186: 22 | C186: =[2]科技树属性分配!AC181 -> 214 | D186: =[2]科技树属性分配!AD181 -> 257 | E186: =[2]科技树属性分配!AE181 -> 6426 | F186: =[2]科技树属性分配!AF181 -> 273 | G186: =[2]科技树属性分配!AG181 -> 273 | H186: =[2]科技树属性分配!AH181 -> 0 | I186: =[2]科技树属性分配!AI181 -> 0 | J186: =[2]科技树属性分配!AJ181 -> 0 | K186: =[2]科技树属性分配!AK181 -> 0 | M186: 5#214 | N186: 2#257|1#6426 | O186: 3#273|4#273 | P186: 53#0|54#0 | Q186: 52#0|51#0
A187: 2323 | B187: 23 | C187: =[2]科技树属性分配!AC182 -> 234 | D187: =[2]科技树属性分配!AD182 -> 280 | E187: =[2]科技树属性分配!AE182 -> 7006 | F187: =[2]科技树属性分配!AF182 -> 298 | G187: =[2]科技树属性分配!AG182 -> 298 | H187: =[2]科技树属性分配!AH182 -> 0 | I187: =[2]科技树属性分配!AI182 -> 0 | J187: =[2]科技树属性分配!AJ182 -> 0 | K187: =[2]科技树属性分配!AK182 -> 0 | M187: 5#234 | N187: 2#280|1#7006 | O187: 3#298|4#298 | P187: 53#0|54#0 | Q187: 52#0|51#0
A188: 2324 | B188: 24 | C188: =[2]科技树属性分配!AC183 -> 254 | D188: =[2]科技树属性分配!AD183 -> 305 | E188: =[2]科技树属性分配!AE183 -> 7617 | F188: =[2]科技树属性分配!AF183 -> 324 | G188: =[2]科技树属性分配!AG183 -> 324 | H188: =[2]科技树属性分配!AH183 -> 0 | I188: =[2]科技树属性分配!AI183 -> 0 | J188: =[2]科技树属性分配!AJ183 -> 0 | K188: =[2]科技树属性分配!AK183 -> 0 | M188: 5#254 | N188: 2#305|1#7617 | O188: 3#324|4#324 | P188: 53#0|54#0 | Q188: 52#0|51#0
A189: 2325 | B189: 25 | C189: =[2]科技树属性分配!AC184 -> 275 | D189: =[2]科技树属性分配!AD184 -> 330 | E189: =[2]科技树属性分配!AE184 -> 8259 | F189: =[2]科技树属性分配!AF184 -> 351 | G189: =[2]科技树属性分配!AG184 -> 351 | H189: =[2]科技树属性分配!AH184 -> 0 | I189: =[2]科技树属性分配!AI184 -> 0 | J189: =[2]科技树属性分配!AJ184 -> 0 | K189: =[2]科技树属性分配!AK184 -> 0 | M189: 5#275 | N189: 2#330|1#8259 | O189: 3#351|4#351 | P189: 53#0|54#0 | Q189: 52#0|51#0
A190: 2326 | B190: 26 | C190: =[2]科技树属性分配!AC185 -> 298 | D190: =[2]科技树属性分配!AD185 -> 357 | E190: =[2]科技树属性分配!AE185 -> 8936 | F190: =[2]科技树属性分配!AF185 -> 380 | G190: =[2]科技树属性分配!AG185 -> 380 | H190: =[2]科技树属性分配!AH185 -> 0 | I190: =[2]科技树属性分配!AI185 -> 0 | J190: =[2]科技树属性分配!AJ185 -> 0 | K190: =[2]科技树属性分配!AK185 -> 0 | M190: 5#298 | N190: 2#357|1#8936 | O190: 3#380|4#380 | P190: 53#0|54#0 | Q190: 52#0|51#0
A191: 2327 | B191: 27 | C191: =[2]科技树属性分配!AC186 -> 322 | D191: =[2]科技树属性分配!AD186 -> 386 | E191: =[2]科技树属性分配!AE186 -> 9649 | F191: =[2]科技树属性分配!AF186 -> 410 | G191: =[2]科技树属性分配!AG186 -> 410 | H191: =[2]科技树属性分配!AH186 -> 0 | I191: =[2]科技树属性分配!AI186 -> 0 | J191: =[2]科技树属性分配!AJ186 -> 0 | K191: =[2]科技树属性分配!AK186 -> 0 | M191: 5#322 | N191: 2#386|1#9649 | O191: 3#410|4#410 | P191: 53#0|54#0 | Q191: 52#0|51#0
A192: 2328 | B192: 28 | C192: =[2]科技树属性分配!AC187 -> 347 | D192: =[2]科技树属性分配!AD187 -> 416 | E192: =[2]科技树属性分配!AE187 -> 10397 | F192: =[2]科技树属性分配!AF187 -> 442 | G192: =[2]科技树属性分配!AG187 -> 442 | H192: =[2]科技树属性分配!AH187 -> 0 | I192: =[2]科技树属性分配!AI187 -> 0 | J192: =[2]科技树属性分配!AJ187 -> 0 | K192: =[2]科技树属性分配!AK187 -> 0 | M192: 5#347 | N192: 2#416|1#10397 | O192: 3#442|4#442 | P192: 53#0|54#0 | Q192: 52#0|51#0
A193: 2329 | B193: 29 | C193: =[2]科技树属性分配!AC188 -> 373 | D193: =[2]科技树属性分配!AD188 -> 447 | E193: =[2]科技树属性分配!AE188 -> 11181 | F193: =[2]科技树属性分配!AF188 -> 475 | G193: =[2]科技树属性分配!AG188 -> 475 | H193: =[2]科技树属性分配!AH188 -> 0 | I193: =[2]科技树属性分配!AI188 -> 0 | J193: =[2]科技树属性分配!AJ188 -> 0 | K193: =[2]科技树属性分配!AK188 -> 0 | M193: 5#373 | N193: 2#447|1#11181 | O193: 3#475|4#475 | P193: 53#0|54#0 | Q193: 52#0|51#0
A194: 2330 | B194: 30 | C194: =[2]科技树属性分配!AC189 -> 400 | D194: =[2]科技树属性分配!AD189 -> 480 | E194: =[2]科技树属性分配!AE189 -> 12000 | F194: =[2]科技树属性分配!AF189 -> 510 | G194: =[2]科技树属性分配!AG189 -> 510 | H194: =[2]科技树属性分配!AH189 -> 0 | I194: =[2]科技树属性分配!AI189 -> 0 | J194: =[2]科技树属性分配!AJ189 -> 0 | K194: =[2]科技树属性分配!AK189 -> 0 | M194: 5#400 | N194: 2#480|1#12000 | O194: 3#510|4#510 | P194: 53#0|54#0 | Q194: 52#0|51#0
B195: =B98 -> 武卫
B196: 一层
A197: =A100+1000 -> 3100 | B197: 0 | C197: =B197 -> 0 | D197: =C197 -> 0 | E197: =D197 -> 0 | F197: =E197 -> 0 | G197: =F197 -> 0 | M197: =$C$2&"#"&C197 -> 1#0 | N197: =$D$2&"#"&D197 -> 3#0 | O197: =$E$2&"#"&E197 -> 4#0 | P197: =$F$2&"#"&F197 -> 54#0 | Q197: =$G$2&"#"&G197 -> 52#0
A198: 3101 | B198: 1 | C198: =[2]科技树属性分配!AC192 -> 52 | D198: =[2]科技树属性分配!AD192 -> 2 | E198: =[2]科技树属性分配!AE192 -> 2 | F198: =[2]科技树属性分配!AF192 -> 44 | G198: =[2]科技树属性分配!AG192 -> 44 | M198: 1#52 | N198: 3#2 | O198: 4#2 | P198: 54#44 | Q198: 52#44
A199: 3102 | B199: 2 | C199: =[2]科技树属性分配!AC193 -> 151 | D199: =[2]科技树属性分配!AD193 -> 4 | E199: =[2]科技树属性分配!AE193 -> 4 | F199: =[2]科技树属性分配!AF193 -> 109 | G199: =[2]科技树属性分配!AG193 -> 109 | M199: 1#151 | N199: 3#4 | O199: 4#4 | P199: 54#109 | Q199: 52#109
A200: 3103 | B200: 3 | C200: =[2]科技树属性分配!AC194 -> 295 | D200: =[2]科技树属性分配!AD194 -> 9 | E200: =[2]科技树属性分配!AE194 -> 9 | F200: =[2]科技树属性分配!AF194 -> 196 | G200: =[2]科技树属性分配!AG194 -> 196 | M200: 1#295 | N200: 3#9 | O200: 4#9 | P200: 54#196 | Q200: 52#196
... 278 more rows

Sheet 材料辅助表
D3: 序号 | E3: 层数 | F3: 等级 | G3: 铁矿石 | H3: 消耗1 | I3: 消耗2 | J3: 消耗3 | N3: 比例 | O3: 累计比例 | Q3: 累计耗铁 | R3: 五职业耗铁 | T3: 小数科技消耗2 | U3: 比例 | X3: 小数科技消耗3 | Y3: 比例
D4: 1 | E4: 1 | F4: 1 | G4: 1001 | H4: 40 | I4: =T4 -> 400 | J4: =X4 -> 400 | K4: =$G$4&"#"&H4 -> 1001#40 | L4: =$G$4&"#"&I4 -> 1001#400 | M4: =$G$4&"#"&J4 -> 1001#400 | N4: =H4/SUM($H$4:$H$33) -> 0.002424242424 | O4: =N4 -> 0.002424242424 | P4: =H4*5 -> 200 | Q4: =SUM(OFFSET($P$4:$P$93,0,0,D4,1)) -> 200 | R4: =Q4*5 -> 1000 | S4: 1 | T4: 400 | U4: =T4/$T$14 -> 0.02424242424 | V4: =U4 -> 0.02424242424 | W4: 1 | X4: 400 | Y4: =X4/$X$14 -> 0.02424242424 | Z4: =Y4 -> 0.02424242424
D5: 2 | E5: =E4 -> 1 | F5: 2 | G5: =G4 -> 1001 | H5: =H4+35 -> 75 | I5: =T5 -> 600 | J5: =X5 -> 600 | K5: =$G$4&"#"&H5 -> 1001#75 | L5: =$G$4&"#"&I5 -> 1001#600 | M5: =$G$4&"#"&J5 -> 1001#600 | N5: =H5/SUM($H$4:$H$33) -> 0.004545454545 | O5: =N5+O4 -> 0.00696969697 | P5: =H5*5 -> 375 | Q5: =SUM(OFFSET($P$4:$P$93,0,0,D5,1)) -> 575 | R5: =Q5*5 -> 2875 | S5: 2 | T5: =T4+200 -> 600 | U5: 0.03636363636 | V5: =U5+V4 -> 0.06060606061 | W5: 2 | X5: =X4+200 -> 600 | Y5: 0.03636363636 | Z5: =Y5+Z4 -> 0.06060606061
D6: 3 | E6: =E5 -> 1 | F6: 3 | G6: =G5 -> 1001 | H6: =H5+35 -> 110 | I6: 800 | J6: 800 | K6: 1001#110 | L6: 1001#800 | M6: 1001#800 | N6: 0.006666666667 | O6: =N6+O5 -> 0.01363636364 | P6: 550 | Q6: 1125 | R6: 5625 | S6: 3 | T6: =T5+200 -> 800 | U6: 0.04848484848 | V6: 0.1090909091 | W6: 3 | X6: 800 | Y6: 0.04848484848 | Z6: 0.1090909091
D7: 4 | E7: 1 | F7: 4 | G7: 1001 | H7: 145 | I7: 1000 | J7: 1000 | K7: 1001#145 | L7: 1001#1000 | M7: 1001#1000 | N7: 0.008787878788 | O7: 0.02242424242 | P7: 725 | Q7: 1850 | R7: 9250 | S7: 4 | T7: =T6+200 -> 1000 | U7: 0.06060606061 | V7: 0.1696969697 | W7: 4 | X7: 1000 | Y7: 0.06060606061 | Z7: 0.1696969697
D8: 5 | E8: 1 | F8: 5 | G8: 1001 | H8: 180 | I8: 1200 | J8: 1200 | K8: 1001#180 | L8: 1001#1200 | M8: 1001#1200 | N8: 0.01090909091 | O8: 0.03333333333 | P8: 900 | Q8: 2750 | R8: 13750 | S8: 5 | T8: =T7+200 -> 1200 | U8: 0.07272727273 | V8: 0.2424242424 | W8: 5 | X8: 1200 | Y8: 0.07272727273 | Z8: 0.2424242424
D9: 6 | E9: 1 | F9: 6 | G9: 1001 | H9: 215 | I9: 1600 | J9: 1600 | K9: 1001#215 | L9: 1001#1600 | M9: 1001#1600 | N9: 0.01303030303 | O9: 0.04636363636 | P9: 1075 | Q9: 3825 | R9: 19125 | S9: 6 | T9: =T8+400 -> 1600 | U9: 0.09696969697 | V9: 0.3393939394 | W9: 6 | X9: =X8+400 -> 1600 | Y9: 0.09696969697 | Z9: 0.3393939394
D10: 7 | E10: 1 | F10: 7 | G10: 1001 | H10: 250 | I10: 2000 | J10: 2000 | K10: 1001#250 | L10: 1001#2000 | M10: 1001#2000 | N10: 0.01515151515 | O10: 0.06151515152 | P10: 1250 | Q10: 5075 | R10: 25375 | S10: 7 | T10: =T9+400 -> 2000 | U10: 0.1212121212 | V10: 0.4606060606 | W10: 7 | X10: 2000 | Y10: 0.1212121212 | Z10: 0.4606060606
D11: 8 | E11: 1 | F11: 8 | G11: 1001 | H11: 285 | I11: 2400 | J11: 2400 | K11: 1001#285 | L11: 1001#2400 | M11: 1001#2400 | N11: 0.01727272727 | O11: 0.07878787879 | P11: 1425 | Q11: 6500 | R11: 32500 | S11: 8 | T11: =T10+400 -> 2400 | U11: 0.1454545455 | V11: 0.6060606061 | W11: 8 | X11: 2400 | Y11: 0.1454545455 | Z11: 0.6060606061
D12: 9 | E12: 1 | F12: 9 | G12: 1001 | H12: 320 | I12: 2900 | J12: 2900 | K12: 1001#320 | L12: 1001#2900 | M12: 1001#2900 | N12: 0.01939393939 | O12: 0.09818181818 | P12: 1600 | Q12: 8100 | R12: 40500 | S12: 9 | T12: =T11+500 -> 2900 | U12: 0.1757575758 | V12: 0.7818181818 | W12: 9 | X12: =X11+500 -> 2900 | Y12: 0.1757575758 | Z12: 0.7818181818
D13: 10 | E13: 1 | F13: 10 | G13: 1001 | H13: 355 | I13: 3600 | J13: 3600 | K13: 1001#355 | L13: 1001#3600 | M13: 1001#3600 | N13: 0.02151515152 | O13: 0.1196969697 | P13: 1775 | Q13: 9875 | R13: 49375 | S13: 10 | T13: =T12+700 -> 3600 | U13: 0.2181818182 | V13: 1 | W13: 10 | X13: =X12+700 -> 3600 | Y13: 0.2181818182 | Z13: 1
D14: 11 | E14: 1 | F14: 11 | G14: 1001 | H14: 390 | K14: =G14&"#"&H14 -> 1001#390 | N14: 0.02363636364 | O14: 0.1433333333 | P14: 1950 | Q14: 11825 | R14: 59125 | T14: =SUM(T4:T13) -> 16500 | X14: =SUM(X4:X13) -> 16500
D15: 12 | E15: 1 | F15: 12 | G15: 1001 | H15: 425 | K15: 1001#425 | N15: 0.02575757576 | O15: 0.1690909091 | P15: 2125 | Q15: 13950 | R15: 69750
D16: 13 | E16: 1 | F16: 13 | G16: 1001 | H16: 460 | K16: 1001#460 | N16: 0.02787878788 | O16: 0.196969697 | P16: 2300 | Q16: 16250 | R16: 81250
D17: 14 | E17: 1 | F17: 14 | G17: 1001 | H17: 495 | K17: 1001#495 | N17: 0.03 | O17: 0.226969697 | P17: 2475 | Q17: 18725 | R17: 93625
D18: 15 | E18: 1 | F18: 15 | G18: 1001 | H18: 530 | K18: 1001#530 | N18: 0.03212121212 | O18: 0.2590909091 | P18: 2650 | Q18: 21375 | R18: 106875
D19: 16 | E19: 1 | F19: 16 | G19: 1001 | H19: 565 | K19: 1001#565 | N19: 0.03424242424 | O19: 0.2933333333 | P19: 2825 | Q19: 24200 | R19: 121000
D20: 17 | E20: 1 | F20: 17 | G20: 1001 | H20: 600 | K20: 1001#600 | N20: 0.03636363636 | O20: 0.3296969697 | P20: 3000 | Q20: 27200 | R20: 136000
D21: 18 | E21: 1 | F21: 18 | G21: 1001 | H21: 635 | K21: 1001#635 | N21: 0.03848484848 | O21: 0.3681818182 | P21: 3175 | Q21: 30375 | R21: 151875 | T21: =SUM(H4:H33) -> 16500
D22: 19 | E22: 1 | F22: 19 | G22: 1001 | H22: 670 | K22: 1001#670 | N22: 0.04060606061 | O22: 0.4087878788 | P22: 3350 | Q22: 33725 | R22: 168625
D23: 20 | E23: 1 | F23: 20 | G23: 1001 | H23: 705 | K23: 1001#705 | N23: 0.04272727273 | O23: 0.4515151515 | P23: 3525 | Q23: 37250 | R23: 186250
D24: 21 | E24: 1 | F24: 21 | G24: 1001 | H24: 740 | K24: 1001#740 | N24: 0.04484848485 | O24: 0.4963636364 | P24: 3700 | Q24: 40950 | R24: 204750
D25: 22 | E25: 1 | F25: 22 | G25: 1001 | H25: 775 | K25: 1001#775 | N25: 0.04696969697 | O25: 0.5433333333 | P25: 3875 | Q25: 44825 | R25: 224125
D26: 23 | E26: 1 | F26: 23 | G26: 1001 | H26: 810 | K26: 1001#810 | N26: 0.04909090909 | O26: 0.5924242424 | P26: 4050 | Q26: 48875 | R26: 244375
D27: 24 | E27: 1 | F27: 24 | G27: 1001 | H27: 845 | K27: 1001#845 | N27: 0.05121212121 | O27: 0.6436363636 | P27: 4225 | Q27: 53100 | R27: 265500
D28: 25 | E28: 1 | F28: 25 | G28: 1001 | H28: 880 | K28: 1001#880 | N28: 0.05333333333 | O28: 0.696969697 | P28: 4400 | Q28: 57500 | R28: 287500
D29: 26 | E29: 1 | F29: 26 | G29: 1001 | H29: =H28+40 -> 920 | K29: 1001#920 | N29: 0.05575757576 | O29: 0.7527272727 | P29: 4600 | Q29: 62100 | R29: 310500
D30: 27 | E30: 1 | F30: 27 | G30: 1001 | H30: =H29+40 -> 960 | K30: 1001#960 | N30: 0.05818181818 | O30: 0.8109090909 | P30: 4800 | Q30: 66900 | R30: 334500
D31: 28 | E31: 1 | F31: 28 | G31: 1001 | H31: =H30+40 -> 1000 | K31: 1001#1000 | N31: 0.06060606061 | O31: 0.8715151515 | P31: 5000 | Q31: 71900 | R31: 359500
D32: 29 | E32: 1 | F32: 29 | G32: 1001 | H32: =H31+40 -> 1040 | K32: 1001#1040 | N32: 0.06303030303 | O32: 0.9345454545 | P32: 5200 | Q32: 77100 | R32: 385500
D33: 30 | E33: 1 | F33: 30 | G33: 1001 | H33: =H32+40 -> 1080 | I33: 消耗2 | J33: 消耗3 | K33: 1001#1080 | N33: 0.06545454545 | O33: 1 | P33: 5400 | Q33: 82500 | R33: 412500 | T33: 小数科技消耗2 | U33: 比例 | X33: 小数科技消耗3 | Y33: 比例
C34: 整数科技点 | D34: =D33+1 -> 31 | E34: =E4+1 -> 2 | F34: =F4 -> 1 | G34: =G4 -> 1001 | H34: 600 | I34: =T34 -> 1000 | J34: =X34 -> 1000 | K34: =$G$4&"#"&H34 -> 1001#600 | L34: 1001#1000 | M34: 1001#1000 | N34: =H34/SUM($H$34:$H$63) -> 0.01817631021 | O34: =N34 -> 0.01817631021 | P34: 3000 | Q34: 85500 | R34: 427500 | S34: 1 | T34: 1000 | U34: =T34/$T$44 -> 0.03021148036 | V34: =U34 -> 0.03021148036 | W34: 1 | X34: 1000 | Y34: =X34/$X$44 -> 0.03021148036 | Z34: =Y34 -> 0.03021148036
D35: =D34+1 -> 32 | E35: 2 | F35: 2 | G35: 1001 | H35: =H34+30 -> 630 | I35: =T35 -> 1500 | J35: 1500 | K35: =$G$4&"#"&H35 -> 1001#630 | L35: 1001#1500 | M35: 1001#1500 | N35: =H35/SUM($H$34:$H$63) -> 0.01908512572 | O35: =N35+O34 -> 0.03726143593 | P35: 3150 | Q35: 88650 | R35: 443250 | S35: 2 | T35: =T34+500 -> 1500 | U35: =T35/$T$44 -> 0.04531722054 | V35: =U35+V34 -> 0.07552870091 | W35: 2 | X35: =X34+500 -> 1500 | Y35: =X35/$X$44 -> 0.04531722054 | Z35: =Y35+Z34 -> 0.07552870091
D36: 33 | E36: 2 | F36: 3 | G36: 1001 | H36: 660 | I36: 2000 | J36: 2000 | K36: =$G$4&"#"&H36 -> 1001#660 | L36: 1001#2000 | M36: 1001#2000 | N36: 0.01999394123 | O36: 0.05725537716 | P36: 3300 | Q36: 91950 | R36: 459750 | S36: 3 | T36: 2000 | U36: 0.06042296073 | V36: 0.1359516616 | W36: 3 | X36: 2000 | Y36: 0.06042296073 | Z36: 0.1359516616
D37: 34 | E37: 2 | F37: 4 | G37: 1001 | H37: 690 | I37: 2500 | J37: 2500 | K37: =$G$4&"#"&H37 -> 1001#690 | L37: 1001#2500 | M37: 1001#2500 | N37: 0.02090275674 | O37: 0.0781581339 | P37: 3450 | Q37: 95400 | R37: 477000 | S37: 4 | T37: 2500 | U37: 0.07552870091 | V37: 0.2114803625 | W37: 4 | X37: 2500 | Y37: 0.07552870091 | Z37: 0.2114803625
D38: 35 | E38: 2 | F38: 5 | G38: 1001 | H38: 720 | I38: 3000 | J38: 3000 | K38: =$G$4&"#"&H38 -> 1001#720 | L38: 1001#3000 | M38: 1001#3000 | N38: 0.02181157225 | O38: 0.09996970615 | P38: 3600 | Q38: 99000 | R38: 495000 | S38: 5 | T38: 3000 | U38: 0.09063444109 | V38: 0.3021148036 | W38: 5 | X38: 3000 | Y38: 0.09063444109 | Z38: 0.3021148036
D39: 36 | E39: 2 | F39: 6 | G39: 1001 | H39: 750 | I39: 3500 | J39: 3500 | K39: =$G$4&"#"&H39 -> 1001#750 | L39: 1001#3500 | M39: 1001#3500 | N39: 0.02272038776 | O39: 0.1226900939 | P39: 3750 | Q39: 102750 | R39: 513750 | S39: 6 | T39: 3500 | U39: 0.1057401813 | V39: 0.4078549849 | W39: 6 | X39: 3500 | Y39: 0.1057401813 | Z39: 0.4078549849
D40: 37 | E40: 2 | F40: 7 | G40: 1001 | H40: 780 | I40: 4000 | J40: 4000 | K40: =$G$4&"#"&H40 -> 1001#780 | L40: 1001#4000 | M40: 1001#4000 | N40: 0.02362920327 | O40: 0.1463192972 | P40: 3900 | Q40: 106650 | R40: 533250 | S40: 7 | T40: 4000 | U40: 0.1208459215 | V40: 0.5287009063 | W40: 7 | X40: 4000 | Y40: 0.1208459215 | Z40: 0.5287009063
D41: 38 | E41: 2 | F41: 8 | G41: 1001 | H41: 810 | I41: 4500 | J41: 4500 | K41: =$G$4&"#"&H41 -> 1001#810 | L41: 1001#4500 | M41: 1001#4500 | N41: 0.02453801878 | O41: 0.170857316 | P41: 4050 | Q41: 110700 | R41: 553500 | S41: 8 | T41: 4500 | U41: 0.1359516616 | V41: 0.664652568 | W41: 8 | X41: 4500 | Y41: 0.1359516616 | Z41: 0.664652568
D42: 39 | E42: 2 | F42: 9 | G42: 1001 | H42: 840 | I42: 5200 | J42: 5200 | K42: =$G$4&"#"&H42 -> 1001#840 | L42: 1001#5200 | M42: 1001#5200 | N42: 0.02544683429 | O42: 0.1963041503 | P42: 4200 | Q42: 114900 | R42: 574500 | S42: 9 | T42: =T41+700 -> 5200 | U42: 0.1570996979 | V42: 0.8217522659 | W42: 9 | X42: =X41+700 -> 5200 | Y42: 0.1570996979 | Z42: 0.8217522659
D43: 40 | E43: 2 | F43: 10 | G43: 1001 | H43: 870 | I43: 5900 | J43: 5900 | K43: =$G$4&"#"&H43 -> 1001#870 | L43: 1001#5900 | M43: 1001#5900 | N43: 0.0263556498 | O43: 0.2226598001 | P43: 4350 | Q43: 119250 | R43: 596250 | S43: 10 | T43: =T42+700 -> 5900 | U43: 0.1782477341 | V43: 1 | W43: 10 | X43: =X42+700 -> 5900 | Y43: 0.1782477341 | Z43: 1
D44: 41 | E44: 2 | F44: 11 | G44: 1001 | H44: 900 | K44: =G44&"#"&H44 -> 1001#900 | N44: 0.02726446531 | O44: 0.2499242654 | P44: 4500 | Q44: 123750 | R44: 618750 | T44: =SUM(T34:T43) -> 33100 | X44: =SUM(X34:X43) -> 33100
D45: 42 | E45: 2 | F45: 12 | G45: 1001 | H45: =H44+40 -> 940 | K45: 1001#940 | N45: 0.02847621933 | O45: 0.2784004847 | P45: 4700 | Q45: 128450 | R45: 642250
D46: 43 | E46: 2 | F46: 13 | G46: 1001 | H46: 980 | K46: 1001#980 | N46: 0.02968797334 | O46: 0.308088458 | P46: 4900 | Q46: 133350 | R46: 666750
D47: 44 | E47: 2 | F47: 14 | G47: 1001 | H47: 1020 | K47: 1001#1020 | N47: 0.03089972736 | O47: 0.3389881854 | P47: 5100 | Q47: 138450 | R47: 692250
D48: 45 | E48: 2 | F48: 15 | G48: 1001 | H48: 1060 | K48: 1001#1060 | N48: 0.03211148137 | O48: 0.3710996668 | P48: 5300 | Q48: 143750 | R48: 718750
D49: 46 | E49: 2 | F49: 16 | G49: 1001 | H49: 1100 | K49: 1001#1100 | N49: 0.03332323538 | O49: 0.4044229022 | P49: 5500 | Q49: 149250 | R49: 746250
D50: 47 | E50: 2 | F50: 17 | G50: 1001 | H50: 1140 | K50: 1001#1140 | N50: 0.0345349894 | O50: 0.4389578915 | P50: 5700 | Q50: 154950 | R50: 774750 | S50: =SUM(H34:H63) -> 33010
D51: 48 | E51: 2 | F51: 18 | G51: 1001 | H51: 1180 | K51: 1001#1180 | N51: 0.03574674341 | O51: 0.474704635 | P51: 5900 | Q51: 160850 | R51: 804250
D52: 49 | E52: 2 | F52: 19 | G52: 1001 | H52: 1220 | K52: 1001#1220 | N52: 0.03695849743 | O52: 0.5116631324 | P52: 6100 | Q52: 166950 | R52: 834750
D53: 50 | E53: 2 | F53: 20 | G53: 1001 | H53: 1260 | K53: 1001#1260 | N53: 0.03817025144 | O53: 0.5498333838 | P53: 6300 | Q53: 173250 | R53: 866250
D54: 51 | E54: 2 | F54: 21 | G54: 1001 | H54: 1300 | K54: 1001#1300 | N54: 0.03938200545 | O54: 0.5892153893 | P54: 6500 | Q54: 179750 | R54: 898750
D55: 52 | E55: 2 | F55: 22 | G55: 1001 | H55: 1340 | K55: 1001#1340 | N55: 0.04059375947 | O55: 0.6298091487 | P55: 6700 | Q55: 186450 | R55: 932250
D56: 53 | E56: 2 | F56: 23 | G56: 1001 | H56: 1380 | K56: 1001#1380 | N56: 0.04180551348 | O56: 0.6716146622 | P56: 6900 | Q56: 193350 | R56: 966750
D57: 54 | E57: 2 | F57: 24 | G57: 1001 | H57: 1420 | K57: 1001#1420 | N57: 0.04301726749 | O57: 0.7146319297 | P57: 7100 | Q57: 200450 | R57: 1002250
D58: 55 | E58: 2 | F58: 25 | G58: 1001 | H58: 1460 | K58: 1001#1460 | N58: 0.04422902151 | O58: 0.7588609512 | P58: 7300 | Q58: 207750 | R58: 1038750
D59: 56 | E59: 2 | F59: 26 | G59: 1001 | H59: 1500 | K59: 1001#1500 | N59: 0.04544077552 | O59: 0.8043017267 | P59: 7500 | Q59: 215250 | R59: 1076250
D60: 57 | E60: 2 | F60: 27 | G60: 1001 | H60: 1540 | K60: 1001#1540 | N60: 0.04665252954 | O60: 0.8509542563 | P60: 7700 | Q60: 222950 | R60: 1114750
D61: 58 | E61: 2 | F61: 28 | G61: 1001 | H61: =H60+50 -> 1590 | K61: 1001#1590 | N61: 0.04816722205 | O61: 0.8991214783 | P61: 7950 | Q61: 230900 | R61: 1154500
D62: 59 | E62: 2 | F62: 29 | G62: 1001 | H62: 1640 | K62: 1001#1640 | N62: 0.04968191457 | O62: 0.9488033929 | P62: 8200 | Q62: 239100 | R62: 1195500
D63: 60 | E63: 2 | F63: 30 | G63: 1001 | H63: 1690 | I63: 消耗2 | J63: 消耗3 | K63: 1001#1690 | N63: 0.05119660709 | O63: 1 | P63: 8450 | Q63: 247550 | R63: 1237750 | T63: 小数科技消耗2 | U63: 比例 | X63: 小数科技消耗3 | Y63: 比例
C64: 整数科技点 | D64: 61 | E64: 3 | F64: 1 | G64: =G34 -> 1001 | H64: 700 | I64: =T64 -> 1500 | J64: =X64 -> 1800 | K64: =$G$4&"#"&H64 -> 1001#700 | L64: 1001#1500 | M64: 1001#1800 | N64: =H64/SUM($H$64:$H$93) -> 0.008980115459 | O64: =N64 -> 0.008980115459 | P64: 3500 | Q64: 251050 | R64: 1255250 | S64: 1 | T64: 1500 | U64: =T64/$T$74 -> 0.01923076923 | V64: =U64 -> 0.01923076923 | W64: 1 | X64: 1800 | Y64: =X64/$T$74 -> 0.02307692308 | Z64: =Y64 -> 0.02307692308
D65: 62 | E65: =E35+1 -> 3 | F65: =F35 -> 2 | G65: 1001 | H65: =H64+80 -> 780 | I65: 2500 | J65: 2900 | K65: =$G$4&"#"&H65 -> 1001#780 | L65: 1001#2500 | M65: 1001#2900 | N65: =H65/SUM($H$64:$H$93) -> 0.01000641437 | O65: =N65+O64 -> 0.01898652983 | P65: 3900 | Q65: 254950 | R65: 1274750 | S65: 2 | T65: =T64+1000 -> 2500 | U65: =T65/$T$74 -> 0.03205128205 | V65: =U65+V64 -> 0.05128205128 | W65: 2 | X65: =X64+1100 -> 2900 | Y65: 0.03717948718 | Z65: =Y65+Z64 -> 0.06025641026
D66: 63 | E66: 3 | F66: 3 | G66: 1001 | H66: =H65+80 -> 860 | I66: 3500 | J66: 4000 | K66: =$G$4&"#"&H66 -> 1001#860 | L66: 1001#3500 | M66: 1001#4000 | N66: 0.01103271328 | O66: =N66+O65 -> 0.0300192431 | P66: 4300 | Q66: 259250 | R66: 1296250 | S66: 3 | T66: =T65+1000 -> 3500 | U66: 0.04487179487 | V66: =U66+V65 -> 0.09615384615 | W66: 3 | X66: =X65+1100 -> 4000 | Y66: 0.05128205128 | Z66: 0.1115384615
D67: =D66+1 -> 64 | E67: 3 | F67: 4 | G67: 1001 | H67: =H66+80 -> 940 | I67: 4500 | J67: 5100 | K67: =$G$4&"#"&H67 -> 1001#940 | L67: 1001#4500 | M67: 1001#5100 | N67: 0.01205901219 | O67: 0.04207825529 | P67: 4700 | Q67: 263950 | R67: 1319750 | S67: 4 | T67: =T66+1000 -> 4500 | U67: 0.05769230769 | V67: 0.1538461538 | W67: 4 | X67: =X66+1100 -> 5100 | Y67: 0.06538461538 | Z67: 0.1769230769
D68: 65 | E68: 3 | F68: 5 | G68: 1001 | H68: =H67+80 -> 1020 | I68: 5500 | J68: 6200 | K68: =$G$4&"#"&H68 -> 1001#1020 | L68: 1001#5500 | M68: 1001#6200 | N68: 0.0130853111 | O68: 0.05516356639 | P68: 5100 | Q68: 269050 | R68: 1345250 | S68: 5 | T68: =T67+1000 -> 5500 | U68: 0.07051282051 | V68: 0.2243589744 | W68: 5 | X68: =X67+1100 -> 6200 | Y68: 0.07948717949 | Z68: 0.2564102564
D69: 66 | E69: 3 | F69: 6 | G69: 1001 | H69: =H68+100 -> 1120 | I69: 7500 | J69: 8000 | K69: =$G$4&"#"&H69 -> 1001#1120 | L69: 1001#7500 | M69: 1001#8000 | N69: 0.01436818473 | O69: 0.06953175112 | P69: =H69*5 -> 5600 | Q69: =SUM(OFFSET($P$4:$P$93,0,0,D69,1)) -> 274650 | R69: =Q69*5 -> 1373250 | S69: 6 | T69: =T68+2000 -> 7500 | U69: 0.09615384615 | V69: 0.3205128205 | W69: 6 | X69: =X68+1800 -> 8000 | Y69: 0.1025641026 | Z69: 0.358974359
D70: 67 | E70: 3 | F70: 7 | G70: 1001 | H70: =H69+100 -> 1220 | I70: 9500 | J70: 9800 | K70: =$G$4&"#"&H70 -> 1001#1220 | L70: 1001#9500 | M70: 1001#9800 | N70: 0.01565105837 | O70: 0.08518280949 | P70: 6100 | Q70: 280750 | R70: 1403750 | S70: 7 | T70: =T69+2000 -> 9500 | U70: 0.1217948718 | V70: 0.4423076923 | W70: 7 | X70: =X69+1800 -> 9800 | Y70: 0.1256410256 | Z70: 0.4846153846
D71: 68 | E71: 3 | F71: 8 | G71: 1001 | H71: =H70+100 -> 1320 | I71: 11500 | J71: 11600 | K71: =$G$4&"#"&H71 -> 1001#1320 | L71: 1001#11500 | M71: 1001#11600 | N71: 0.01693393201 | O71: 0.1021167415 | P71: 6600 | Q71: 287350 | R71: 1436750 | S71: 8 | T71: =T70+2000 -> 11500 | U71: 0.1474358974 | V71: 0.5897435897 | W71: 8 | X71: =X70+1800 -> 11600 | Y71: 0.1487179487 | Z71: 0.6333333333
D72: 69 | E72: 3 | F72: 9 | G72: 1001 | H72: =H71+100 -> 1420 | I72: 14500 | J72: 13400 | K72: =$G$4&"#"&H72 -> 1001#1420 | L72: 1001#14500 | M72: 1001#13400 | N72: 0.01821680564 | O72: 0.1203335471 | P72: 7100 | Q72: 294450 | R72: 1472250 | S72: 9 | T72: =T71+3000 -> 14500 | U72: 0.1858974359 | V72: 0.7756410256 | W72: 9 | X72: =X71+1800 -> 13400 | Y72: 0.1717948718 | Z72: 0.8051282051
D73: 70 | E73: 3 | F73: 10 | G73: 1001 | H73: =H72+100 -> 1520 | I73: 17500 | J73: 15200 | K73: =$G$4&"#"&H73 -> 1001#1520 | L73: 1001#17500 | M73: 1001#15200 | N73: 0.01949967928 | O73: 0.1398332264 | P73: 7600 | Q73: 302050 | R73: 1510250 | S73: 10 | T73: =T72+3000 -> 17500 | U73: 0.2243589744 | V73: 1 | W73: 10 | X73: =X72+1800 -> 15200 | Y73: 0.1948717949 | Z73: 1
D74: 71 | E74: 3 | F74: 11 | G74: 1001 | H74: =H73+150 -> 1670 | K74: =G74&"#"&H74 -> 1001#1670 | N74: 0.02142398974 | O74: 0.1612572162 | P74: 8350 | Q74: 310400 | R74: 1552000 | T74: =SUM(T64:T73) -> 78000 | X74: =SUM(X64:X73) -> 78000
D75: 72 | E75: 3 | F75: 12 | G75: 1001 | H75: =H74+150 -> 1820 | K75: 1001#1820 | N75: 0.02334830019 | O75: 0.1846055164 | P75: 9100 | Q75: 319500 | R75: 1597500
D76: 73 | E76: 3 | F76: 13 | G76: 1001 | H76: =H75+150 -> 1970 | K76: 1001#1970 | N76: 0.02527261065 | O76: 0.209878127 | P76: 9850 | Q76: 329350 | R76: 1646750
D77: 74 | E77: 3 | F77: 14 | G77: 1001 | H77: =H76+150 -> 2120 | K77: 1001#2120 | N77: 0.0271969211 | O77: 0.2370750481 | P77: 10600 | Q77: 339950 | R77: 1699750
D78: 75 | E78: 3 | F78: 15 | G78: 1001 | H78: =H77+150 -> 2270 | K78: 1001#2270 | N78: 0.02912123156 | O78: 0.2661962797 | P78: 11350 | Q78: 351300 | R78: 1756500 | S78: =SUM(H64:H93) -> 77950
D79: 76 | E79: 3 | F79: 16 | G79: 1001 | H79: =H78+180 -> 2450 | K79: 1001#2450 | N79: 0.03143040411 | O79: 0.2976266838 | P79: 12250 | Q79: 363550 | R79: 1817750
D80: 77 | E80: 3 | F80: 17 | G80: 1001 | H80: =H79+180 -> 2630 | K80: 1001#2630 | N80: 0.03373957665 | O80: 0.3313662604 | P80: 13150 | Q80: 376700 | R80: 1883500
D81: 78 | E81: 3 | F81: 18 | G81: 1001 | H81: =H80+180 -> 2810 | K81: 1001#2810 | N81: 0.0360487492 | O81: 0.3674150096 | P81: 14050 | Q81: 390750 | R81: 1953750
D82: 79 | E82: 3 | F82: 19 | G82: 1001 | H82: =H81+180 -> 2990 | K82: 1001#2990 | N82: 0.03835792174 | O82: 0.4057729314 | P82: 14950 | Q82: 405700 | R82: 2028500
D83: 80 | E83: 3 | F83: 20 | G83: 1001 | H83: =H82+180 -> 3170 | K83: 1001#3170 | N83: 0.04066709429 | O83: 0.4464400257 | P83: 15850 | Q83: 421550 | R83: 2107750
D84: 81 | E84: 3 | F84: 21 | G84: 1001 | H84: =H83+200 -> 3370 | K84: 1001#3370 | N84: 0.04323284157 | O84: 0.4896728672 | P84: 16850 | Q84: 438400 | R84: 2192000
D85: 82 | E85: 3 | F85: 22 | G85: 1001 | H85: =H84+200 -> 3570 | K85: 1001#3570 | N85: 0.04579858884 | O85: 0.5354714561 | P85: 17850 | Q85: 456250 | R85: 2281250
D86: 83 | E86: 3 | F86: 23 | G86: 1001 | H86: =H85+200 -> 3770 | K86: 1001#3770 | N86: 0.04836433611 | O86: 0.5838357922 | P86: 18850 | Q86: 475100 | R86: 2375500
D87: 84 | E87: 3 | F87: 24 | G87: 1001 | H87: =H86+200 -> 3970 | K87: 1001#3970 | N87: 0.05093008339 | O87: 0.6347658756 | P87: 19850 | Q87: 494950 | R87: 2474750
D88: 85 | E88: 3 | F88: 25 | G88: 1001 | H88: =H87+200 -> 4170 | K88: 1001#4170 | N88: 0.05349583066 | O88: 0.6882617062 | P88: 20850 | Q88: 515800 | R88: 2579000
D89: 86 | E89: 3 | F89: 26 | G89: 1001 | H89: =H88+230 -> 4400 | K89: 1001#4400 | N89: 0.05644644003 | O89: 0.7447081462 | P89: 22000 | Q89: 537800 | R89: 2689000
D90: 87 | E90: 3 | F90: 27 | G90: 1001 | H90: =H89+230 -> 4630 | K90: 1001#4630 | N90: 0.05939704939 | O90: 0.8041051956 | P90: 23150 | Q90: 560950 | R90: 2804750
D91: 88 | E91: 3 | F91: 28 | G91: 1001 | H91: =H90+230 -> 4860 | K91: 1001#4860 | N91: 0.06234765876 | O91: 0.8664528544 | P91: 24300 | Q91: 585250 | R91: 2926250
D92: 89 | E92: 3 | F92: 29 | G92: 1001 | H92: =H91+230 -> 5090 | K92: 1001#5090 | N92: 0.06529826812 | O92: 0.9317511225 | P92: 25450 | Q92: 610700 | R92: 3053500
D93: 90 | E93: 3 | F93: 30 | G93: 1001 | H93: =H92+230 -> 5320 | K93: 1001#5320 | N93: 0.06824887749 | O93: 1 | P93: 26600 | Q93: 637300 | R93: 3186500

Sheet 工坊等级
C7: 工坊等级 | D7: 铁矿石 | E7: 开放科技点层数 | F7: 开放科技点个数 | G7: 开放科技点等级上限
C8: 1 | D8: 50 | E8: 0 | F8: =E8*5 -> 0 | G8: 0
C9: 2 | D9: 100 | E9: 1 | F9: 5 | G9: 10
C10: =C9+2 -> 4 | D10: =D9+100 -> 200 | E10: 1 | F10: 5 | G10: 20
C11: 6 | D11: 300 | E11: 1 | F11: 5 | G11: 30
C12: 8 | D12: 400 | E12: 2 | F12: 10 | G12: 10
C13: 10 | D13: 500 | E13: 2 | F13: 10 | G13: 20
C14: 12 | D14: 600 | E14: 2 | F14: 10 | G14: 30
C15: 14 | D15: 700 | E15: 3 | F15: 15 | G15: 10
C16: 16 | D16: 800 | E16: 3 | F16: 15 | G16: 15
C17: 18 | D17: 900 | E17: 3 | F17: 15 | G17: 20
C18: 20 | D18: 1000 | E18: 3 | F18: 15 | G18: 25
C19: 22 | D19: 1100 | E19: 3 | F19: 15 | G19: 30
